Workbook

Sheet Data summary
A1: RUN # 2 | B1: Rate classes | C1: Weather station used for normalization | H1: Test Year
A2: 1 | B2: Residential | C2: Windsor | H2: 2004
A3: 2 | B3: GS>50kW
A4: 3 | B4: Street Lighting
A5: 4 | B5: Sentinel Lighting
A6: 5 | B6: USL
A7: 6 | B7: GS < 50 kW
A10: Monthly kWh by class (with actual weather) | C10: Jan | D10: Feb | E10: Mar | F10: Apr | G10: May | H10: Jun | I10: Jul | J10: Aug | K10: Sep | L10: Oct | M10: Nov | N10: Dec | O10: TOTAL
A11: 1 | B11: Residential | C11: 10545290.29 | D11: 7809396.4 | E11: 7479034.67 | F11: 5934202.91 | G11: 4710592.18 | H11: 4994678.3 | I11: 5585015.4 | J11: 5340582.45 | K11: 5201411.2 | L11: 4910099.82 | M11: 7012688.53 | N11: 8866653.01 | O11: 78389645.16
A12: 2 | B12: GS>50kW | C12: 7068548.858 | D12: 6421657.837 | E12: 6481599.983 | F12: 5645849.78 | G12: 5760881.298 | H12: 5424029.16 | I12: 5771878.958 | J12: 5726988.704 | K12: 5639671.538 | L12: 5943416.23 | M12: 6244500.674 | N12: 7052651.403 | O12: 73181674.42
A13: 3 | B13: Street Lighting | C13: 268759.6905 | D13: 231064.2225 | E13: 221136.7722 | F13: 187484.0902 | G13: 170437.8261 | H13: 153535.0621 | I13: 164721.8371 | J13: 185242.3608 | K13: 204523.7389 | L13: 238389.1648 | M13: 254100.7558 | N13: 275174.5509 | O13: 2554570.072
A14: 4 | B14: Sentinel Lighting | C14: 5189294.103 | D14: 4458944.979 | E14: 3823690.04 | F14: 3594675.119 | G14: 3382378.068 | H14: 3385734.372 | I14: 3691958.493 | J14: 3521232.542 | K14: 3229575.693 | L14: 3927260.824 | M14: 3916191.85 | N14: 5028039.084 | O14: 47148975.17
A15: 5 | B15: USL | C15: 28843.14233 | D15: 24835.09761 | E15: 23768.06815 | F15: 20156.05419 | G15: 18326.69678 | H15: 16510.06994 | I15: 17713.01626 | J15: 19928.84886 | K15: 22009.83652 | L15: 25670.6901 | M15: 27339.72614 | N15: 29588.47749 | O15: 274689.7244
A16: 6 | B16: GS < 50 kW | C16: 41089.7655 | D16: 41089.7655 | E16: 38037.53923 | F16: 42377.45173 | G16: 42377.45173 | H16: 42377.45173 | I16: 41693.58673 | J16: 41693.58673 | K16: 41693.58673 | L16: 41693.58673 | M16: 41089.7655 | N16: 41089.7655 | O16: 496303.3034
A19: Monthly kWh by class (with normalized weather) | C19: Jan | D19: Feb | E19: Mar | F19: Apr | G19: May | H19: Jun | I19: Jul | J19: Aug | K19: Sep | L19: Oct | M19: Nov | N19: Dec | O19: TOTAL
A20: 1 | B20: Residential | C20: 9724668.13 | D20: 7889774.523 | E20: 7866703.374 | F20: 5838914.951 | G20: 4810426.512 | H20: 5311054.866 | I20: 5690591.43 | J20: 5523145.856 | K20: 5295338.549 | L20: 5057339.309 | M20: 7135155.494 | N20: 8494293.709 | O20: 78637406.7
A21: 2 | B21: GS>50kW | C21: 6763878.463 | D21: 6451499.627 | E21: 6625528.801 | F21: 5610472.451 | G21: 5800989.404 | H21: 5575953.619 | I21: 5822576.712 | J21: 5814655.901 | K21: 5681491.004 | L21: 5998081.477 | M21: 6289968.687 | N21: 6914406.47 | O21: 73349502.62
A22: 3 | B22: Street Lighting | C22: 268759.6905 | D22: 231064.2225 | E22: 221136.7722 | F22: 187484.0902 | G22: 170437.8261 | H22: 153535.0621 | I22: 164721.8371 | J22: 185242.3608 | K22: 204523.7389 | L22: 238389.1648 | M22: 254100.7558 | N22: 275174.5509 | O22: 2554570.072
A23: 4 | B23: Sentinel Lighting | C23: 4879934.439 | D23: 4489246.071 | E23: 3969834.106 | F23: 3558753.282 | G23: 3422008.958 | H23: 3527600.228 | I23: 3739299.653 | J23: 3603095.477 | K23: 3269539.836 | L23: 3982767.443 | M23: 3962359.673 | N23: 4887666.385 | O23: 47292105.55
A24: 5 | B24: USL | C24: 28843.14233 | D24: 24835.09761 | E24: 23768.06815 | F24: 20156.05419 | G24: 18326.69678 | H24: 16510.06994 | I24: 17713.01626 | J24: 19928.84886 | K24: 22009.83652 | L24: 25670.6901 | M24: 27339.72614 | N24: 29588.47749 | O24: 274689.7244
A25: 6 | B25: GS < 50 kW | C25: 41089.7655 | D25: 41089.7655 | E25: 38037.53923 | F25: 42377.45173 | G25: 42377.45173 | H25: 42377.45173 | I25: 41693.58673 | J25: 41693.58673 | K25: 41693.58673 | L25: 41693.58673 | M25: 41089.7655 | N25: 41089.7655 | O25: 496303.3034
A28: Residential class information | C28: Equipment saturation
B29: Electric space heating | C29: 0.24
B30: Electric water heating | C30: 0.5
B31: Air conditioning | C31: 0.5
B32: Baseload | C32: 1
A35: General service >50kW | C35: 2004 kWh (Actual) | D35: 2004 kWh (Weather Corrected)
B36: Weather sensitive load | C36: 68956502.04 | D36: 70090564.58
B37: Non-weather sensitive load | C37: 75956932.73 | D37: 75956932.73
B38: TOTAL | C38: 144913434.8 | D38: 146047497.3

Sheet Hourly load shapes by class
A1: ALL UNITS IN GWh | E1: 2004 Load Shape | M1: 2015 Load Shape
A2: Year | B2: Month | C2: Day | D2: Hour (EST) | E2: Residential | F2: GS>50kW | G2: Street Lighting | H2: Sentinel Lighting | I2: USL | J2: GS<50kW | K2: TOTAL LDC sales | M2: =E2 -> Residential | N2: GS>50kW | O2: Street Lighting | P2: Sentinel Lighting | Q2: USL | R2: GS<50kW | S2: =K2 -> TOTAL LDC sales | V2: Residential | W2: GS>50kW | X2: Street Lighting | Y2: Sentinel Lighting | Z2: USL | AA2: GS<50kW
A3: 2004 | B3: 1 | C3: 1 | D3: 1 | E3: 0.02611501628 | F3: 0.01063449241 | G3: 0.00121485 | H3: 1.61e-06 | I3: 6.036563172e-05 | J3: 0.009653474858 | K3: 0.04767980918 | M3: =E3*V$5 -> 0.01985488718 | N3: =F3*W$5 -> 0.01174797159 | O3: =G3*X$5 -> 0.0004851308595 | P3: =H3*Y$5 -> 2.987494535e-06 | Q3: =I3*Z$5 -> 2.959527104e-05 | R3: =J3 -> 0.009653474858 | S3: =SUM(M3:Q3) -> 0.0321205724 | U3: 2004 | V3: =SUM(E3:E8786)*1000000 -> 239658158.5 | W3: =SUM(F3:F8786)*1000000 -> 146047497.3 | X3: 5353155.35 | Y3: 7299.44 | Z3: 534100.97 | AA3: 76699831.46
A4: 2004 | B4: 1 | C4: 1 | D4: 2 | E4: 0.02470086791 | F4: 0.01044604409 | G4: 0.00121485 | H4: 1.61e-06 | I4: 6.036563172e-05 | J4: 0.009512275844 | K4: 0.04593601347 | M4: =E4*V$5 -> 0.01877972965 | N4: 0.01153979188 | O4: 0.0004851308595 | P4: 2.987494535e-06 | Q4: 2.959527104e-05 | R4: 0.009512275844 | S4: =SUM(M4:Q4) -> 0.03083723516 | U4: 2018 Forecast | V4: 182208797 | W4: 161339327.1 | X4: 2137696.717 | Y4: 13544.74355 | Z4: 261852.0261 | AA4: 63336489.53
A5: 2004 | B5: 1 | C5: 1 | D5: 3 | E5: 0.02328571394 | F5: 0.01045677346 | G5: 0.00121485 | H5: 1.61e-06 | I5: 6.036563172e-05 | J5: 0.01011843144 | K5: 0.04513774447 | M5: 0.01770380758 | N5: 0.01155164467 | O5: 0.0004851308595 | P5: 2.987494535e-06 | Q5: 2.959527104e-05 | R5: 0.01011843144 | S5: 0.02977316588 | U5: Scaling Factor | V5: =V4/V3 -> 0.7602862264 | W5: =W4/W3 -> 1.104704497 | X5: 0.3993339585 | Y5: 1.855586668 | Z5: 0.4902668985 | AA5: =AA4/AA3 -> 0.8257709088
A6: 2004 | B6: 1 | C6: 1 | D6: 4 | E6: 0.02343691246 | F6: 0.01023825228 | G6: 0.00121485 | H6: 1.61e-06 | I6: 6.036563172e-05 | J6: 0.009983437145 | K6: 0.04493542751 | M6: 0.01781876173 | N6: 0.01131024333 | O6: 0.0004851308595 | P6: 2.987494535e-06 | Q6: 2.959527104e-05 | R6: 0.009983437145 | S6: 0.02964671869
A7: 2004 | B7: 1 | C7: 1 | D7: 5 | E7: 0.02304659595 | F7: 0.01036835535 | G7: 0.00121485 | H7: 1.61e-06 | I7: 6.036563172e-05 | J7: 0.0107129789 | K7: 0.04540475582 | M7: 0.01752200946 | N7: 0.01145396878 | O7: 0.0004851308595 | P7: 2.987494535e-06 | Q7: 2.959527104e-05 | R7: 0.0107129789 | S7: 0.02949369187
A8: 2004 | B8: 1 | C8: 1 | D8: 6 | E8: 0.02438662262 | F8: 0.01058659936 | G8: 0.00121485 | H8: 1.61e-06 | I8: 6.036563172e-05 | J8: 0.01058608285 | K8: 0.04683613047 | M8: 0.01854081329 | N8: 0.01169506392 | O8: 0.0004851308595 | P8: 2.987494535e-06 | Q8: 2.959527104e-05 | R8: 0.01058608285 | S8: 0.03075359084
A9: 2004 | B9: 1 | C9: 1 | D9: 7 | E9: 0.02778744558 | F9: 0.0112795028 | G9: 0 | H9: 0 | I9: 6.036563172e-05 | J9: 0.010965179 | K9: 0.05009249302 | M9: 0.02112641214 | N9: 0.01246051747 | O9: 0 | P9: 0 | Q9: 2.959527104e-05 | R9: 0.010965179 | S9: 0.03361652489
A10: 2004 | B10: 1 | C10: 1 | D10: 8 | E10: 0.03133878939 | F10: 0.01239421269 | G10: 0 | H10: 0 | I10: 6.036563172e-05 | J10: 0.01114790221 | K10: 0.05494126992 | M10: 0.02382644993 | N10: 0.0136919425 | O10: 0 | P10: 0 | Q10: 2.959527104e-05 | R10: 0.01114790221 | S10: 0.0375479877
A11: 2004 | B11: 1 | C11: 1 | D11: 9 | E11: 0.03549015629 | F11: 0.01275621437 | G11: 0 | H11: 0 | I11: 6.036563172e-05 | J11: 0.01041252241 | K11: 0.0587192587 | M11: 0.026982677 | N11: 0.01409184738 | O11: 0 | P11: 0 | Q11: 2.959527104e-05 | R11: 0.01041252241 | S11: 0.04110411965
A12: 2004 | B12: 1 | C12: 1 | D12: 10 | E12: 0.03937554068 | F12: 0.01285518059 | G12: 0 | H12: 0 | I12: 6.036563172e-05 | J12: 0.01064522255 | K12: 0.06293630946 | M12: 0.02993668124 | N12: 0.01420117581 | O12: 0 | P12: 0 | Q12: 2.959527104e-05 | R12: 0.01064522255 | S12: 0.04416745232
A13: 2004 | B13: 1 | C13: 1 | D13: 11 | E13: 0.03853375578 | F13: 0.01326056596 | G13: 0 | H13: 0 | I13: 6.036563172e-05 | J13: 0.01263547919 | K13: 0.06449016655 | M13: 0.02929668377 | N13: 0.01464900684 | O13: 0 | P13: 0 | Q13: 2.959527104e-05 | R13: 0.01263547919 | S13: 0.04397528588
A14: 2004 | B14: 1 | C14: 1 | D14: 12 | E14: 0.03873212662 | F14: 0.01336893939 | G14: 0 | H14: 0 | I14: 6.036563172e-05 | J14: 0.01288339577 | K14: 0.0650448274 | M14: 0.02944750238 | N14: 0.01476872746 | O14: 0 | P14: 0 | Q14: 2.959527104e-05 | R14: 0.01288339577 | S14: 0.04424582512
A15: 2004 | B15: 1 | C15: 1 | D15: 13 | E15: 0.03826625774 | F15: 0.01318913631 | G15: 0 | H15: 0 | I15: 6.036563172e-05 | J15: 0.01092231606 | K15: 0.06243807574 | M15: 0.02909330869 | N15: 0.0145700982 | O15: 0 | P15: 0 | Q15: 2.959527104e-05 | R15: 0.01092231606 | S15: 0.04369300216
A16: 2004 | B16: 1 | C16: 1 | D16: 14 | E16: 0.03652750672 | F16: 0.01344789863 | G16: 0 | H16: 0 | I16: 6.036563172e-05 | J16: 0.01167285286 | K16: 0.06170862384 | M16: 0.02777136024 | N16: 0.0148559541 | O16: 0 | P16: 0 | Q16: 2.959527104e-05 | R16: 0.01167285286 | S16: 0.04265690961
A17: 2004 | B17: 1 | C17: 1 | D17: 15 | E17: 0.03566643962 | F17: 0.01350504097 | G17: 0 | H17: 0 | I17: 6.036563172e-05 | J17: 0.01205975048 | K17: 0.06129159671 | M17: 0.02711670279 | N17: 0.01491907949 | O17: 0 | P17: 0 | Q17: 2.959527104e-05 | R17: 0.01205975048 | S17: 0.04206537755
A18: 2004 | B18: 1 | C18: 1 | D18: 16 | E18: 0.03700840598 | F18: 0.01313675064 | G18: 0 | H18: 0 | I18: 6.036563172e-05 | J18: 0.010571329 | K18: 0.06077685125 | M18: 0.02813698133 | N18: 0.01451222751 | O18: 0 | P18: 0 | Q18: 2.959527104e-05 | R18: 0.010571329 | S18: 0.04267880411
A19: 2004 | B19: 1 | C19: 1 | D19: 17 | E19: 0.04101232549 | F19: 0.0129702205 | G19: 0 | H19: 0 | I19: 6.036563172e-05 | J19: 0.01005913274 | K19: 0.06410204436 | M19: 0.03118110618 | N19: 0.01432826092 | O19: 0 | P19: 0 | Q19: 2.959527104e-05 | R19: 0.01005913274 | S19: 0.04553896237
A20: 2004 | B20: 1 | C20: 1 | D20: 18 | E20: 0.04544595075 | F20: 0.01297050364 | G20: 0 | H20: 0 | I20: 6.036563172e-05 | J20: 0.01014642612 | K20: 0.06862324614 | M20: 0.0345519304 | N20: 0.0143285737 | O20: 0 | P20: 0 | Q20: 2.959527104e-05 | R20: 0.01014642612 | S20: 0.04891009937
A21: 2004 | B21: 1 | C21: 1 | D21: 19 | E21: 0.04651750673 | F21: 0.01251882586 | G21: 0.00121485 | H21: 1.61e-06 | I21: 6.036563172e-05 | J21: 0.007400350181 | K21: 0.06771350841 | M21: 0.03536661965 | N21: 0.01382960323 | O21: 0.0004851308595 | P21: 2.987494535e-06 | Q21: 2.959527104e-05 | R21: 0.007400350181 | S21: 0.04971393651
A22: 2004 | B22: 1 | C22: 1 | D22: 20 | E22: 0.04331450534 | F22: 0.01242856174 | G22: 0.00121485 | H22: 1.61e-06 | I22: 6.036563172e-05 | J22: 0.008907150237 | K22: 0.06592704294 | M22: 0.03293142181 | N22: 0.01372988804 | O22: 0.0004851308595 | P22: 2.987494535e-06 | Q22: 2.959527104e-05 | R22: 0.008907150237 | S22: 0.04717902348
A23: 2004 | B23: 1 | C23: 1 | D23: 21 | E23: 0.04054270148 | F23: 0.01219956038 | G23: 0.00121485 | H23: 1.61e-06 | I23: 6.036563172e-05 | J23: 0.009464991356 | K23: 0.06348407885 | M23: 0.03082405751 | N23: 0.01347690922 | O23: 0.0004851308595 | P23: 2.987494535e-06 | Q23: 2.959527104e-05 | R23: 0.009464991356 | S23: 0.04481868035
A24: 2004 | B24: 1 | C24: 1 | D24: 22 | E24: 0.03898425453 | F24: 0.01149421006 | G24: 0.00121485 | H24: 1.61e-06 | I24: 6.036563172e-05 | J24: 0.008159998048 | K24: 0.05991528828 | M24: 0.02963919177 | N24: 0.01269770554 | O24: 0.0004851308595 | P24: 2.987494535e-06 | Q24: 2.959527104e-05 | R24: 0.008159998048 | S24: 0.04285461094
A25: 2004 | B25: 1 | C25: 1 | D25: 23 | E25: 0.03583864279 | F25: 0.01134187 | G25: 0.00121485 | H25: 1.61e-06 | I25: 6.036563172e-05 | J25: 0.008324066956 | K25: 0.05678140538 | M25: 0.02724762649 | N25: 0.0125294148 | O25: 0.0004851308595 | P25: 2.987494535e-06 | Q25: 2.959527104e-05 | R25: 0.008324066956 | S25: 0.04029475491
A26: 2004 | B26: 1 | C26: 1 | D26: 24 | E26: 0.02934173934 | F26: 0.01116721608 | G26: 0.00121485 | H26: 1.61e-06 | I26: 6.036563172e-05 | J26: 0.009619722701 | K26: 0.05140550375 | M26: 0.02230812027 | N26: 0.01233647383 | O26: 0.0004851308595 | P26: 2.987494535e-06 | Q26: 2.959527104e-05 | R26: 0.009619722701 | S26: 0.03516230773
A27: 2004 | B27: 1 | C27: 2 | D27: 1 | E27: 0.02549857271 | F27: 0.01136433815 | G27: 0.00121485 | H27: 1.61e-06 | I27: 6.036563172e-05 | J27: 0.008848359839 | K27: 0.04698809633 | M27: 0.01938621362 | N27: 0.01255423546 | O27: 0.0004851308595 | P27: 2.987494535e-06 | Q27: 2.959527104e-05 | R27: 0.008848359839 | S27: 0.03245816271
A28: 2004 | B28: 1 | C28: 2 | D28: 2 | E28: 0.02344057887 | F28: 0.01100965941 | G28: 0.00121485 | H28: 1.61e-06 | I28: 6.036563172e-05 | J28: 0.009542536087 | K28: 0.0452696 | M28: 0.01782154925 | N28: 0.01216242026 | O28: 0.0004851308595 | P28: 2.987494535e-06 | Q28: 2.959527104e-05 | R28: 0.009542536087 | S28: 0.03050168314
A29: 2004 | B29: 1 | C29: 2 | D29: 3 | E29: 0.02205572561 | F29: 0.01099368252 | G29: 0.00121485 | H29: 1.61e-06 | I29: 6.036563172e-05 | J29: 0.01015667873 | K29: 0.04448291249 | M29: 0.01676866439 | N29: 0.01214477052 | O29: 0.0004851308595 | P29: 2.987494535e-06 | Q29: 2.959527104e-05 | R29: 0.01015667873 | S29: 0.02943114853
A30: 2004 | B30: 1 | C30: 2 | D30: 4 | E30: 0.02247682843 | F30: 0.01064115481 | G30: 0.00121485 | H30: 1.61e-06 | I30: 6.036563172e-05 | J30: 0.009888718041 | K30: 0.04428352691 | M30: 0.01708882307 | N30: 0.01175533157 | O30: 0.0004851308595 | P30: 2.987494535e-06 | Q30: 2.959527104e-05 | R30: 0.009888718041 | S30: 0.02936186826
A31: 2004 | B31: 1 | C31: 2 | D31: 5 | E31: 0.02182309972 | F31: 0.01098099727 | G31: 0.00121485 | H31: 1.61e-06 | I31: 6.036563172e-05 | J31: 0.01066512291 | K31: 0.04474604553 | M31: 0.01659180213 | N31: 0.01213075706 | O31: 0.0004851308595 | P31: 2.987494535e-06 | Q31: 2.959527104e-05 | R31: 0.01066512291 | S31: 0.02924027282
A32: 2004 | B32: 1 | C32: 2 | D32: 6 | E32: 0.02313366896 | F32: 0.01156115852 | G32: 0.00121485 | H32: 1.61e-06 | I32: 6.036563172e-05 | J32: 0.01018500485 | K32: 0.04615665796 | M32: 0.01758820988 | N32: 0.01277166381 | O32: 0.0004851308595 | P32: 2.987494535e-06 | Q32: 2.959527104e-05 | R32: 0.01018500485 | S32: 0.03087758731
A33: 2004 | B33: 1 | C33: 2 | D33: 7 | E33: 0.02717926248 | F33: 0.01255924421 | G33: 0 | H33: 0 | I33: 6.036563172e-05 | J33: 0.009566905021 | K33: 0.04936577735 | M33: 0.02066401891 | N33: 0.01387425356 | O33: 0 | P33: 0 | Q33: 2.959527104e-05 | R33: 0.009566905021 | S33: 0.03456786774
A34: 2004 | B34: 1 | C34: 2 | D34: 8 | E34: 0.02993311402 | F34: 0.01442949702 | G34: 0 | H34: 0 | I34: 6.036563172e-05 | J34: 0.009721233239 | K34: 0.0541442099 | M34: 0.0227577343 | N34: 0.01594033024 | O34: 0 | P34: 0 | Q34: 2.959527104e-05 | R34: 0.009721233239 | S34: 0.03872765981
A35: 2004 | B35: 1 | C35: 2 | D35: 9 | E35: 0.03317000848 | F35: 0.01631593872 | G35: 0 | H35: 0 | I35: 6.036563172e-05 | J35: 0.00832107843 | K35: 0.05786739126 | M35: 0.02521870057 | N35: 0.01802429088 | O35: 0 | P35: 0 | Q35: 2.959527104e-05 | R35: 0.00832107843 | S35: 0.04327258673
A36: 2004 | B36: 1 | C36: 2 | D36: 10 | E36: 0.03574160824 | F36: 0.01723515502 | G36: 0 | H36: 0 | I36: 6.036563172e-05 | J36: 0.008986131841 | K36: 0.06202326074 | M36: 0.02717385246 | N36: 0.01903975326 | O36: 0 | P36: 0 | Q36: 2.959527104e-05 | R36: 0.008986131841 | S36: 0.04624320099
A37: 2004 | B37: 1 | C37: 2 | D37: 11 | E37: 0.03540413638 | F37: 0.01784123122 | G37: 0 | H37: 0 | I37: 6.036563172e-05 | J37: 0.01024883911 | K37: 0.06355457234 | M37: 0.02691727725 | N37: 0.01970928836 | O37: 0 | P37: 0 | Q37: 2.959527104e-05 | R37: 0.01024883911 | S37: 0.04665616088
A38: 2004 | B38: 1 | C38: 2 | D38: 12 | E38: 0.03611376844 | F38: 0.01790271805 | G38: 0 | H38: 0 | I38: 6.036563172e-05 | J38: 0.01002433454 | K38: 0.06410118665 | M38: 0.02745680072 | N38: 0.01977721313 | O38: 0 | P38: 0 | Q38: 2.959527104e-05 | R38: 0.01002433454 | S38: 0.04726360913
A39: 2004 | B39: 1 | C39: 2 | D39: 13 | E39: 0.03506694928 | F39: 0.01736453619 | G39: 0 | H39: 0 | I39: 6.036563172e-05 | J39: 0.009040407506 | K39: 0.0615322586 | M39: 0.02666091854 | N39: 0.01918268121 | O39: 0 | P39: 0 | Q39: 2.959527104e-05 | R39: 0.009040407506 | S39: 0.04587319502
A40: 2004 | B40: 1 | C40: 2 | D40: 14 | E40: 0.03454444916 | F40: 0.01742552019 | G40: 0 | H40: 0 | I40: 6.036563172e-05 | J40: 0.008783056561 | K40: 0.06081339155 | M40: 0.02626366889 | N40: 0.01925005052 | O40: 0 | P40: 0 | Q40: 2.959527104e-05 | R40: 0.008783056561 | S40: 0.04554331468
A41: 2004 | B41: 1 | C41: 2 | D41: 15 | E41: 0.03279978287 | F41: 0.01776380494 | G41: 0 | H41: 0 | I41: 6.036563172e-05 | J41: 0.009778458661 | K41: 0.0604024121 | M41: 0.02493722314 | N41: 0.0196237552 | O41: 0 | P41: 0 | Q41: 2.959527104e-05 | R41: 0.009778458661 | S41: 0.04459057362
A42: 2004 | B42: 1 | C42: 2 | D42: 16 | E42: 0.03343485412 | F42: 0.0174581605 | G42: 0 | H42: 0 | I42: 6.036563172e-05 | J42: 0.008941758663 | K42: 0.05989513891 | M42: 0.02542005907 | N42: 0.01928610841 | O42: 0 | P42: 0 | Q42: 2.959527104e-05 | R42: 0.008941758663 | S42: 0.04473576275
A43: 2004 | B43: 1 | C43: 2 | D43: 17 | E43: 0.03803256471 | F43: 0.01730378916 | G43: 0 | H43: 0 | I43: 6.036563172e-05 | J43: 0.007775360172 | K43: 0.06317207968 | M43: 0.02891563511 | N43: 0.0191155737 | O43: 0 | P43: 0 | Q43: 2.959527104e-05 | R43: 0.007775360172 | S43: 0.04806080408
A44: 2004 | B44: 1 | C44: 2 | D44: 18 | E44: 0.04180364496 | F44: 0.01728559969 | G44: 0 | H44: 0 | I44: 6.036563172e-05 | J44: 0.008478090722 | K44: 0.06762770101 | M44: 0.03178273548 | N44: 0.01909547971 | O44: 0 | P44: 0 | Q44: 2.959527104e-05 | R44: 0.008478090722 | S44: 0.05090781046
A45: 2004 | B45: 1 | C45: 2 | D45: 19 | E45: 0.04351063108 | F45: 0.01647203021 | G45: 0.00121485 | H45: 1.61e-06 | I45: 6.036563172e-05 | J45: 0.00547166316 | K45: 0.06673115008 | M45: 0.03308053351 | N45: 0.01819672585 | O45: 0.0004851308595 | P45: 2.987494535e-06 | Q45: 2.959527104e-05 | R45: 0.00547166316 | S45: 0.05179497299
A46: 2004 | B46: 1 | C46: 2 | D46: 20 | E46: 0.04158294672 | F46: 0.01632347369 | G46: 0.00121485 | H46: 1.61e-06 | I46: 6.036563172e-05 | J46: 0.005787358702 | K46: 0.06497060475 | M46: 0.03161494164 | N46: 0.01803261479 | O46: 0.0004851308595 | P46: 2.987494535e-06 | Q46: 2.959527104e-05 | R46: 0.005787358702 | S46: 0.05016527006
A47: 2004 | B47: 1 | C47: 2 | D47: 21 | E47: 0.03770961282 | F47: 0.0161334537 | G47: 0.00121485 | H47: 1.61e-06 | I47: 6.036563172e-05 | J47: 0.007443190391 | K47: 0.06256308254 | M47: 0.02867009923 | N47: 0.01782269885 | O47: 0.0004851308595 | P47: 2.987494535e-06 | Q47: 2.959527104e-05 | R47: 0.007443190391 | S47: 0.04701051171
A48: 2004 | B48: 1 | C48: 2 | D48: 22 | E48: 0.03685232653 | F48: 0.01497245679 | G48: 0.00121485 | H48: 1.61e-06 | I48: 6.036563172e-05 | J48: 0.005944455915 | K48: 0.05904606486 | M48: 0.02801831627 | N48: 0.01654014034 | O48: 0.0004851308595 | P48: 2.987494535e-06 | Q48: 2.959527104e-05 | R48: 0.005944455915 | S48: 0.04507617024
A49: 2004 | B49: 1 | C49: 2 | D49: 23 | E49: 0.03469423566 | F49: 0.01288619803 | G49: 0.00121485 | H49: 1.61e-06 | I49: 6.036563172e-05 | J49: 0.007100389511 | K49: 0.05595764883 | M49: 0.02637754951 | N49: 0.01423544091 | O49: 0.0004851308595 | P49: 2.987494535e-06 | Q49: 2.959527104e-05 | R49: 0.007100389511 | S49: 0.04113070404
A50: 2004 | B50: 1 | C50: 2 | D50: 24 | E50: 0.03168146516 | F50: 0.01151105917 | G50: 0.00121485 | H50: 1.61e-06 | I50: 6.036563172e-05 | J50: 0.006190388086 | K50: 0.05065973805 | M50: 0.02408698159 | N50: 0.01271631883 | O50: 0.0004851308595 | P50: 2.987494535e-06 | Q50: 2.959527104e-05 | R50: 0.006190388086 | S50: 0.03732101405
A51: 2004 | B51: 1 | C51: 3 | D51: 1 | E51: 0.02442783224 | F51: 0.01101605431 | G51: 0.00121485 | H51: 1.61e-06 | I51: 6.036563172e-05 | J51: 0.008736975792 | K51: 0.04545768797 | M51: 0.01857214439 | N51: 0.01216948474 | O51: 0.0004851308595 | P51: 2.987494535e-06 | Q51: 2.959527104e-05 | R51: 0.008736975792 | S51: 0.03125934275
A52: 2004 | B52: 1 | C52: 3 | D52: 2 | E52: 0.02300704612 | F52: 0.01060956592 | G52: 0.00121485 | H52: 1.61e-06 | I52: 6.036563172e-05 | J52: 0.009117611925 | K52: 0.0440110496 | M52: 0.01749194028 | N52: 0.01172043518 | O52: 0.0004851308595 | P52: 2.987494535e-06 | Q52: 2.959527104e-05 | R52: 0.009117611925 | S52: 0.02973008908
A53: 2004 | B53: 1 | C53: 3 | D53: 3 | E53: 0.02209938342 | F53: 0.01039475085 | G53: 0.00121485 | H53: 1.61e-06 | I53: 6.036563172e-05 | J53: 0.009659433906 | K53: 0.04343039381 | M53: 0.01680185682 | N53: 0.01148312801 | O53: 0.0004851308595 | P53: 2.987494535e-06 | Q53: 2.959527104e-05 | R53: 0.009659433906 | S53: 0.02880269846
A54: 2004 | B54: 1 | C54: 3 | D54: 4 | E54: 0.02162492296 | F54: 0.01021874644 | G54: 0.00121485 | H54: 1.61e-06 | I54: 6.036563172e-05 | J54: 0.01001708067 | K54: 0.0431375757 | M54: 0.01644113107 | N54: 0.01128869515 | O54: 0.0004851308595 | P54: 2.987494535e-06 | Q54: 2.959527104e-05 | R54: 0.01001708067 | S54: 0.02824753985
A55: 2004 | B55: 1 | C55: 3 | D55: 5 | E55: 0.02184543848 | F55: 0.0103573858 | G55: 0.00121485 | H55: 1.61e-06 | I55: 6.036563172e-05 | J55: 0.01018998123 | K55: 0.04366963113 | M55: 0.01660878598 | N55: 0.01144185067 | O55: 0.0004851308595 | P55: 2.987494535e-06 | Q55: 2.959527104e-05 | R55: 0.01018998123 | S55: 0.02856835028
A56: 2004 | B56: 1 | C56: 3 | D56: 6 | E56: 0.02277941518 | F56: 0.01050288228 | G56: 0.00121485 | H56: 1.61e-06 | I56: 6.036563172e-05 | J56: 0.01003008256 | K56: 0.04458920565 | M56: 0.01731887561 | N56: 0.01160258128 | O56: 0.0004851308595 | P56: 2.987494535e-06 | Q56: 2.959527104e-05 | R56: 0.01003008256 | S56: 0.02943917052
A57: 2004 | B57: 1 | C57: 3 | D57: 7 | E57: 0.02494880891 | F57: 0.01113954659 | G57: 0 | H57: 0 | I57: 6.036563172e-05 | J57: 0.01033320087 | K57: 0.046481922 | M57: 0.01896823578 | N57: 0.01230590721 | O57: 0 | P57: 0 | Q57: 2.959527104e-05 | R57: 0.01033320087 | S57: 0.03130373826
A58: 2004 | B58: 1 | C58: 3 | D58: 8 | E58: 0.02961298062 | F58: 0.01210302805 | G58: 0 | H58: 0 | I58: 6.036563172e-05 | J58: 0.009329569025 | K58: 0.05110594333 | M58: 0.02251434129 | N58: 0.01337026951 | O58: 0 | P58: 0 | Q58: 2.959527104e-05 | R58: 0.009329569025 | S58: 0.03591420607
A59: 2004 | B59: 1 | C59: 3 | D59: 9 | E59: 0.03214577217 | F59: 0.01299054495 | G59: 0 | H59: 0 | I59: 6.036563172e-05 | J59: 0.009654830833 | K59: 0.05485151359 | M59: 0.02443998782 | N59: 0.01435071342 | O59: 0 | P59: 0 | Q59: 2.959527104e-05 | R59: 0.009654830833 | S59: 0.03882029651
A60: 2004 | B60: 1 | C60: 3 | D60: 10 | E60: 0.03413846893 | F60: 0.01343003172 | G60: 0 | H60: 0 | I60: 6.036563172e-05 | J60: 0.01017698546 | K60: 0.05780585175 | M60: 0.02595500772 | N60: 0.01483621643 | O60: 0 | P60: 0 | Q60: 2.959527104e-05 | R60: 0.01017698546 | S60: 0.04082081942
A61: 2004 | B61: 1 | C61: 3 | D61: 11 | E61: 0.03476217329 | F61: 0.01349096061 | G61: 0 | H61: 0 | I61: 6.036563172e-05 | J61: 0.01011412123 | K61: 0.05842762077 | M61: 0.02642920155 | N61: 0.01490352486 | O61: 0 | P61: 0 | Q61: 2.959527104e-05 | R61: 0.01011412123 | S61: 0.04136232168
A62: 2004 | B62: 1 | C62: 3 | D62: 12 | E62: 0.03504112321 | F62: 0.01322886442 | G62: 0 | H62: 0 | I62: 6.036563172e-05 | J62: 0.008997017333 | K62: 0.05732737059 | M62: 0.02664128333 | N62: 0.01461398601 | O62: 0 | P62: 0 | Q62: 2.959527104e-05 | R62: 0.008997017333 | S62: 0.04128486462
A63: 2004 | B63: 1 | C63: 3 | D63: 13 | E63: 0.03553552448 | F63: 0.012836169 | G63: 0 | H63: 0 | I63: 6.036563172e-05 | J63: 0.007973247914 | K63: 0.05640530702 | M63: 0.02701716981 | N63: 0.01418017362 | O63: 0 | P63: 0 | Q63: 2.959527104e-05 | R63: 0.007973247914 | S63: 0.0412269387
A64: 2004 | B64: 1 | C64: 3 | D64: 14 | E64: 0.03356051304 | F64: 0.01266459462 | G64: 0 | H64: 0 | I64: 6.036563172e-05 | J64: 0.007990372368 | K64: 0.05427584565 | M64: 0.02551559581 | N64: 0.01399063463 | O64: 0 | P64: 0 | Q64: 2.959527104e-05 | R64: 0.007990372368 | S64: 0.03953582571
A65: 2004 | B65: 1 | C65: 3 | D65: 15 | E65: 0.03259524572 | F65: 0.01278784631 | G65: 0 | H65: 0 | I65: 6.036563172e-05 | J65: 0.008424939309 | K65: 0.05386839698 | M65: 0.02478171637 | N65: 0.01412679133 | O65: 0 | P65: 0 | Q65: 2.959527104e-05 | R65: 0.008424939309 | S65: 0.03893810297
A66: 2004 | B66: 1 | C66: 3 | D66: 16 | E66: 0.03229589068 | F66: 0.01271637823 | G66: 0 | H66: 0 | I66: 6.036563172e-05 | J66: 0.008299840281 | K66: 0.05337247482 | M66: 0.02455412085 | N66: 0.01404784021 | O66: 0 | P66: 0 | Q66: 2.959527104e-05 | R66: 0.008299840281 | S66: 0.03863155634
A67: 2004 | B67: 1 | C67: 3 | D67: 17 | E67: 0.03601309934 | F67: 0.0125414047 | G67: 0 | H67: 0 | I67: 6.036563172e-05 | J67: 0.006763711486 | K67: 0.05537858116 | M67: 0.0273802634 | N67: =F67*W$5 -> 0.01385454617 | O67: =G67*X$5 -> 0 | P67: =H67*Y$5 -> 0 | Q67: =I67*Z$5 -> 2.959527104e-05 | R67: =J67 -> 0.006763711486 | S67: 0.04126440484
A68: 2004 | B68: 1 | C68: 3 | D68: 18 | E68: 0.04085395216 | F68: 0.01260736674 | G68: 0 | H68: 0 | I68: 6.036563172e-05 | J68: 0.006588076275 | K68: 0.0601097608 | M68: =E68*V$5 -> 0.03106069712 | N68: 0.01392741473 | O68: 0 | P68: 0 | Q68: 2.959527104e-05 | R68: 0.006588076275 | S68: =SUM(M68:Q68) -> 0.04501770712
A69: 2004 | B69: 1 | C69: 3 | D69: 19 | E69: 0.04171736261 | F69: 0.01214818764 | G69: 0.00121485 | H69: 1.61e-06 | I69: 6.036563172e-05 | J69: 0.004086442014 | K69: 0.0592288179 | M69: 0.0317171362 | N69: 0.01342015751 | O69: 0.0004851308595 | P69: 2.987494535e-06 | Q69: 2.959527104e-05 | R69: 0.004086442014 | S69: 0.04565500733
A70: 2004 | B70: 1 | C70: 3 | D70: 20 | E70: 0.03978957158 | F70: 0.01169290839 | G70: 0.00121485 | H70: 1.61e-06 | I70: 6.036563172e-05 | J70: 0.004165603698 | K70: 0.05692490931 | M70: 0.03025146323 | N70: 0.01291720849 | O70: 0.0004851308595 | P70: 2.987494535e-06 | Q70: 2.959527104e-05 | R70: 0.004165603698 | S70: 0.04368638534
A71: 2004 | B71: 1 | C71: 3 | D71: 21 | E71: 0.03703288034 | F71: 0.01166134244 | G71: 0.00121485 | H71: 1.61e-06 | I71: 6.036563172e-05 | J71: 0.006026809936 | K71: 0.05599785834 | M71: 0.02815558884 | N71: 0.01288233744 | O71: 0.0004851308595 | P71: 2.987494535e-06 | Q71: 2.959527104e-05 | R71: 0.006026809936 | S71: 0.0415556399
A72: 2004 | B72: 1 | C72: 3 | D72: 22 | E72: 0.03372378054 | F72: 0.0112217038 | G72: 0.00121485 | H72: 1.61e-06 | I72: 6.036563172e-05 | J72: 0.006304110926 | K72: 0.05252642089 | M72: 0.02563972584 | N72: 0.01239666665 | O72: 0.0004851308595 | P72: 2.987494535e-06 | Q72: 2.959527104e-05 | R72: 0.006304110926 | S72: 0.03855410612
A73: 2004 | B73: 1 | C73: 3 | D73: 23 | E73: 0.03185394518 | F73: 0.01096162569 | G73: 0.00121485 | H73: 1.61e-06 | I73: 6.036563172e-05 | J73: 0.005677799171 | K73: 0.04977019568 | M73: 0.02421811578 | N73: 0.0121093572 | O73: 0.0004851308595 | P73: 2.987494535e-06 | Q73: 2.959527104e-05 | R73: 0.005677799171 | S73: 0.0368451866
A74: 2004 | B74: 1 | C74: 3 | D74: 24 | E74: 0.02821337266 | F74: 0.01076761381 | G74: 0.00121485 | H74: 1.61e-06 | I74: 6.036563172e-05 | J74: 0.007614679364 | K74: 0.04787249147 | M74: 0.02145023864 | N74: 0.0118950314 | O74: 0.0004851308595 | P74: 2.987494535e-06 | Q74: 2.959527104e-05 | R74: 0.007614679364 | S74: 0.03386298366
A75: 2004 | B75: 1 | C75: 4 | D75: 1 | E75: 0.02600596528 | F75: 0.01120667326 | G75: 0.00121485 | H75: 1.61e-06 | I75: 6.036563172e-05 | J75: 0.008567402789 | K75: 0.04705686696 | M75: 0.01977197721 | N75: 0.01238006235 | O75: 0.0004851308595 | P75: 2.987494535e-06 | Q75: 2.959527104e-05 | R75: 0.008567402789 | S75: 0.03266975318
A76: 2004 | B76: 1 | C76: 4 | D76: 2 | E76: 0.02410819843 | F76: 0.01094735683 | G76: 0.00121485 | H76: 1.61e-06 | I76: 6.036563172e-05 | J76: 0.009152089109 | K76: 0.04548447 | M76: 0.01832913121 | N76: 0.01209359433 | O76: 0.0004851308595 | P76: 2.987494535e-06 | Q76: 2.959527104e-05 | R76: 0.009152089109 | S76: 0.03094043916
A77: 2004 | B77: 1 | C77: 4 | D77: 3 | E77: 0.02325114355 | F77: 0.01074505935 | G77: 0.00121485 | H77: 1.61e-06 | I77: 6.036563172e-05 | J77: 0.009546148223 | K77: 0.04481917676 | M77: 0.01767752419 | N77: 0.01187011539 | O77: 0.0004851308595 | P77: 2.987494535e-06 | Q77: 2.959527104e-05 | R77: 0.009546148223 | S77: 0.0300653532
A78: 2004 | B78: 1 | C78: 4 | D78: 4 | E78: 0.02323087274 | F78: 0.01053567527 | G78: 0.00121485 | H78: 1.61e-06 | I78: 6.036563172e-05 | J78: 0.009523538356 | K78: 0.044566912 | M78: 0.01766211257 | N78: 0.01163880785 | O78: 0.0004851308595 | P78: 2.987494535e-06 | Q78: 2.959527104e-05 | R78: 0.009523538356 | S78: 0.02981863405
A79: 2004 | B79: 1 | C79: 4 | D79: 5 | E79: 0.0228412476 | F79: 0.01072398499 | G79: 0.00121485 | H79: 1.61e-06 | I79: 6.036563172e-05 | J79: 0.01022807118 | K79: 0.04507012939 | M79: 0.01736588594 | N79: 0.01184683444 | O79: 0.0004851308595 | P79: 2.987494535e-06 | Q79: 2.959527104e-05 | R79: 0.01022807118 | S79: 0.029730434
A80: 2004 | B80: 1 | C80: 4 | D80: 6 | E80: 0.02424829662 | F80: 0.01071967304 | G80: 0.00121485 | H80: 1.61e-06 | I80: 6.036563172e-05 | J80: 0.009663167704 | K80: 0.04590796299 | M80: 0.01843564593 | N80: 0.01184207101 | O80: 0.0004851308595 | P80: 2.987494535e-06 | Q80: 2.959527104e-05 | R80: 0.009663167704 | S80: 0.03079543057
A81: 2004 | B81: 1 | C81: 4 | D81: 7 | E81: 0.02734089232 | F81: 0.01132386649 | G81: 0 | H81: 0 | I81: 6.036563172e-05 | J81: 0.009416608158 | K81: 0.0481417326 | M81: 0.02078690385 | N81: 0.01250952624 | O81: 0 | P81: 0 | Q81: 2.959527104e-05 | R81: 0.009416608158 | S81: 0.03332602536
A82: 2004 | B82: 1 | C82: 4 | D82: 8 | E82: 0.03023534734 | F82: 0.01227148117 | G82: 0 | H82: 0 | I82: 6.036563172e-05 | J82: 0.00926829309 | K82: 0.05183548723 | M82: 0.02298751813 | N82: 0.01355636043 | O82: 0 | P82: 0 | Q82: 2.959527104e-05 | R82: 0.00926829309 | S82: 0.03657347383
A83: 2004 | B83: 1 | C83: 4 | D83: 9 | E83: 0.03485294512 | F83: 0.01245249845 | G83: 0 | H83: 0 | I83: 6.036563172e-05 | J83: 0.007673289162 | K83: 0.05503909837 | M83: 0.02649821413 | N83: 0.01375633103 | O83: 0 | P83: 0 | Q83: 2.959527104e-05 | R83: 0.007673289162 | S83: 0.04028414043
A84: 2004 | B84: 1 | C84: 4 | D84: 10 | E84: 0.03726651222 | F84: 0.01359189349 | G84: 0 | H84: 0 | I84: 6.036563172e-05 | J84: 0.006947506656 | K84: 0.057866278 | M84: 0.02833321595 | N84: 0.01501502586 | O84: 0 | P84: 0 | Q84: 2.959527104e-05 | R84: 0.006947506656 | S84: 0.04337783708
A85: 2004 | B85: 1 | C85: 4 | D85: 11 | E85: 0.03638347501 | F85: 0.01481906475 | G85: 0 | H85: 0 | I85: 6.036563172e-05 | J85: 0.00919004227 | K85: 0.06045294767 | M85: 0.02766185492 | N85: 0.01637068747 | O85: 0 | P85: 0 | Q85: 2.959527104e-05 | R85: 0.00919004227 | S85: 0.04406213767
A86: 2004 | B86: 1 | C86: 4 | D86: 12 | E86: 0.03617600107 | F86: 0.01480453034 | G86: 0 | H86: 0 | I86: 6.036563172e-05 | J86: 0.008667029738 | K86: 0.05970792677 | M86: 0.02750411534 | N86: 0.01635463124 | O86: 0 | P86: 0 | Q86: 2.959527104e-05 | R86: 0.008667029738 | S86: 0.04388834185
A87: 2004 | B87: 1 | C87: 4 | D87: 13 | E87: 0.03529558915 | F87: 0.01470371709 | G87: 0 | H87: 0 | I87: 6.036563172e-05 | J87: 0.008200031656 | K87: 0.05825970353 | M87: 0.02683475028 | N87: 0.01624326239 | O87: 0 | P87: 0 | Q87: 2.959527104e-05 | R87: 0.008200031656 | S87: 0.04310760794
A88: 2004 | B88: 1 | C88: 4 | D88: 14 | E88: 0.03405069815 | F88: 0.01486961534 | G88: 0 | H88: 0 | I88: 6.036563172e-05 | J88: 0.008450347373 | K88: 0.05743102649 | M88: 0.0258882768 | N88: 0.01642653093 | O88: 0 | P88: 0 | Q88: 2.959527104e-05 | R88: 0.008450347373 | S88: 0.042344403
A89: 2004 | B89: 1 | C89: 4 | D89: 15 | E89: 0.03401205076 | F89: 0.01474751865 | G89: 0 | H89: 0 | I89: 6.036563172e-05 | J89: 0.007161556535 | K89: 0.05598149158 | M89: 0.02585889372 | N89: 0.01629165017 | O89: 0 | P89: 0 | Q89: 2.959527104e-05 | R89: 0.007161556535 | S89: 0.04218013917
A90: 2004 | B90: 1 | C90: 4 | D90: 16 | E90: 0.03577250971 | F90: 0.0146403806 | G90: 0 | H90: 0 | I90: 6.036563172e-05 | J90: 0.006451933542 | K90: 0.05692518948 | M90: 0.02719734641 | N90: 0.01617329429 | O90: 0 | P90: 0 | Q90: 2.959527104e-05 | R90: 0.006451933542 | S90: 0.04340023597
A91: 2004 | B91: 1 | C91: 4 | D91: 17 | E91: 0.03848701791 | F91: 0.01448461654 | G91: 0 | H91: 0 | I91: 6.036563172e-05 | J91: 0.005691703789 | K91: 0.05872370386 | M91: 0.02926114961 | N91: 0.01600122102 | O91: 0 | P91: 0 | Q91: 2.959527104e-05 | R91: 0.005691703789 | S91: 0.04529196591
A92: 2004 | B92: 1 | C92: 4 | D92: 18 | E92: 0.0449054011 | F92: 0.01411815673 | G92: 0 | H92: 0 | I92: 6.036563172e-05 | J92: 0.004119088829 | K92: 0.06320301229 | M92: 0.03414095795 | N92: 0.01559639123 | O92: 0 | P92: 0 | Q92: 2.959527104e-05 | R92: 0.004119088829 | S92: 0.04976694444
A93: 2004 | B93: 1 | C93: 4 | D93: 19 | E93: 0.04541738509 | F93: 0.0138148036 | G93: 0.00121485 | H93: 1.61e-06 | I93: 6.036563172e-05 | J93: 0.0034233365 | K93: 0.06393235082 | M93: 0.03453021232 | N93: 0.01526127566 | O93: 0.0004851308595 | P93: 2.987494535e-06 | Q93: 2.959527104e-05 | R93: 0.0034233365 | S93: 0.05030920161
A94: 2004 | B94: 1 | C94: 4 | D94: 20 | E94: 0.04217673941 | F94: 0.01376117852 | G94: 0.00121485 | H94: 1.61e-06 | I94: 6.036563172e-05 | J94: 0.005122990984 | K94: 0.06233773455 | M94: 0.03206639405 | N94: 0.0152020358 | O94: 0.0004851308595 | P94: 2.987494535e-06 | Q94: 2.959527104e-05 | R94: 0.005122990984 | S94: 0.04778614348
A95: 2004 | B95: 1 | C95: 4 | D95: 21 | E95: 0.04072750417 | F95: 0.01366435842 | G95: 0.00121485 | H95: 1.61e-06 | I95: 6.036563172e-05 | J95: 0.005777628232 | K95: 0.06144631645 | M95: 0.03096456046 | N95: 0.01509507819 | O95: 0.0004851308595 | P95: 2.987494535e-06 | Q95: 2.959527104e-05 | R95: 0.005777628232 | S95: 0.04657735227
A96: 2004 | B96: 1 | C96: 4 | D96: 22 | E96: 0.03956157888 | F96: 0.01327545864 | G96: 0.00121485 | H96: 1.61e-06 | I96: 6.036563172e-05 | J96: 0.004996733003 | K96: 0.05911059616 | M96: 0.03007812352 | N96: 0.01466545886 | O96: 0.0004851308595 | P96: 2.987494535e-06 | Q96: 2.959527104e-05 | R96: 0.004996733003 | S96: 0.04526129601
A97: 2004 | B97: 1 | C97: 4 | D97: 23 | E97: 0.0352747528 | F97: 0.01358217727 | G97: 0.00121485 | H97: 1.61e-06 | I97: 6.036563172e-05 | J97: 0.003424442568 | K97: 0.05355819827 | M97: 0.02681890869 | N97: 0.01500429231 | O97: 0.0004851308595 | P97: 2.987494535e-06 | Q97: 2.959527104e-05 | R97: 0.003424442568 | S97: 0.04234091463
A98: 2004 | B98: 1 | C98: 4 | D98: 24 | E98: 0.02811204369 | F98: 0.01383496144 | G98: 0.00121485 | H98: 1.61e-06 | I98: 6.036563172e-05 | J98: 0.006981747456 | K98: 0.05020557821 | M98: 0.02137319961 | N98: 0.01528354411 | O98: 0.0004851308595 | P98: 2.987494535e-06 | Q98: 2.959527104e-05 | R98: 0.006981747456 | S98: 0.03717445735
A99: 2004 | B99: 1 | C99: 5 | D99: 1 | E99: 0.03116809127 | F99: 0.01472465089 | G99: 0.00121485 | H99: 1.61e-06 | I99: 6.036563172e-05 | J99: 0.01029962289 | K99: 0.05746919068 | M99: 0.02369667049 | N99: 0.01626638805 | O99: 0.0004851308595 | P99: 2.987494535e-06 | Q99: 2.959527104e-05 | R99: 0.01029962289 | S99: 0.04048077217
A100: 2004 | B100: 1 | C100: 5 | D100: 2 | E100: 0.02883425671 | F100: 0.01471370908 | G100: 0.00121485 | H100: 1.61e-06 | I100: 6.036563172e-05 | J100: 0.01127513841 | K100: 0.05609992983 | M100: 0.02192228822 | N100: 0.01625430059 | O100: 0.0004851308595 | P100: 2.987494535e-06 | Q100: 2.959527104e-05 | R100: 0.01127513841 | S100: 0.03869430244
A101: 2004 | B101: 1 | C101: 5 | D101: 3 | E101: 0.02868237404 | F101: 0.01475445282 | G101: 0.00121485 | H101: 1.61e-06 | I101: 6.036563172e-05 | J101: 0.01183753041 | K101: 0.05655118291 | M101: 0.02180681392 | N101: 0.01629931038 | O101: 0.0004851308595 | P101: 2.987494535e-06 | Q101: 2.959527104e-05 | R101: 0.01183753041 | S101: 0.03862383793
A102: 2004 | B102: 1 | C102: 5 | D102: 4 | E102: 0.02963947813 | F102: 0.01475041826 | G102: 0.00121485 | H102: 1.61e-06 | I102: 6.036563172e-05 | J102: 0.0111720853 | K102: 0.05683880732 | M102: 0.02253448698 | N102: 0.01629485339 | O102: 0.0004851308595 | P102: 2.987494535e-06 | Q102: 2.959527104e-05 | R102: 0.0111720853 | S102: 0.03934705399
A103: 2004 | B103: 1 | C103: 5 | D103: 5 | E103: 0.03021587199 | F103: 0.01497237089 | G103: 0.00121485 | H103: 1.61e-06 | I103: 6.036563172e-05 | J103: 0.01165344219 | K103: 0.0581185107 | M103: 0.02297271129 | N103: 0.01654004545 | O103: 0.0004851308595 | P103: 2.987494535e-06 | Q103: 2.959527104e-05 | R103: 0.01165344219 | S103: 0.04003047037
A104: 2004 | B104: 1 | C104: 5 | D104: 6 | E104: 0.03229317591 | F104: 0.01572508365 | G104: 0.00121485 | H104: 1.61e-06 | I104: 6.036563172e-05 | J104: 0.01129842433 | K104: 0.06059350952 | M104: 0.02455205685 | N104: 0.01737157062 | O104: 0.0004851308595 | P104: 2.987494535e-06 | Q104: 2.959527104e-05 | R104: 0.01129842433 | S104: 0.0424413411
A105: 2004 | B105: 1 | C105: 5 | D105: 7 | E105: 0.0394842758 | F105: 0.01686649935 | G105: 0 | H105: 0 | I105: 6.036563172e-05 | J105: 0.01030699255 | K105: 0.06671813333 | M105: 0.03001935105 | N105: 0.01863249768 | O105: 0 | P105: 0 | Q105: 2.959527104e-05 | R105: 0.01030699255 | S105: 0.04868144401
A106: 2004 | B106: 1 | C106: 5 | D106: 8 | E106: 0.04576678263 | F106: 0.01901212201 | G106: 0 | H106: 0 | I106: 6.036563172e-05 | J106: 0.01188046939 | K106: 0.07671973967 | M106: 0.03479585446 | N106: 0.02100277668 | O106: 0 | P106: 0 | Q106: 2.959527104e-05 | R106: 0.01188046939 | S106: 0.05582822642
A107: 2004 | B107: 1 | C107: 5 | D107: 9 | E107: 0.04795701316 | F107: 0.02037475354 | G107: 0 | H107: 0 | I107: 6.036563172e-05 | J107: 0.01270750292 | K107: 0.08109963524 | M107: 0.03646105656 | N107: 0.02250808186 | O107: 0 | P107: 0 | Q107: 2.959527104e-05 | R107: 0.01270750292 | S107: 0.05899873369
A108: 2004 | B108: 1 | C108: 5 | D108: 10 | E108: 0.04482842938 | F108: 0.02124267704 | G108: 0 | H108: 0 | I108: 6.036563172e-05 | J108: 0.01415867465 | K108: 0.0802901467 | M108: 0.0340824374 | N108: 0.02346688086 | O108: 0 | P108: 0 | Q108: 2.959527104e-05 | R108: 0.01415867465 | S108: 0.05757891353
A109: 2004 | B109: 1 | C109: 5 | D109: 11 | E109: 0.0431548308 | F109: 0.02190280123 | G109: 0 | H109: 0 | I109: 6.036563172e-05 | J109: 0.01388900039 | K109: 0.07900699806 | M109: 0.03281002346 | N109: 0.02419612302 | O109: 0 | P109: 0 | Q109: 2.959527104e-05 | R109: 0.01388900039 | S109: 0.05703574175
A110: 2004 | B110: 1 | C110: 5 | D110: 12 | E110: 0.04228318373 | F110: 0.02178691946 | G110: 0 | H110: 0 | I110: 6.036563172e-05 | J110: 0.01362267537 | K110: 0.07775314419 | M110: 0.03214732219 | N110: 0.0240681079 | O110: 0 | P110: 0 | Q110: 2.959527104e-05 | R110: 0.01362267537 | S110: 0.05624502537
A111: 2004 | B111: 1 | C111: 5 | D111: 13 | E111: 0.04210542413 | F111: 0.02136562022 | G111: 0 | H111: 0 | I111: 6.036563172e-05 | J111: 0.01223415333 | K111: 0.07576556331 | M111: 0.03201217402 | N111: 0.02360269673 | O111: 0 | P111: 0 | Q111: 2.959527104e-05 | R111: 0.01223415333 | S111: 0.05564446603
A112: 2004 | B112: 1 | C112: 5 | D112: 14 | E112: 0.04042996008 | F112: 0.02150719788 | G112: 0 | H112: 0 | I112: 6.036563172e-05 | J112: 0.01309632661 | K112: 0.07509385021 | M112: 0.03073834178 | N112: 0.02375909821 | O112: 0 | P112: 0 | Q112: 2.959527104e-05 | R112: 0.01309632661 | S112: 0.05452703527
A113: 2004 | B113: 1 | C113: 5 | D113: 15 | E113: 0.03965786696 | F113: 0.02097670353 | G113: 0 | H113: 0 | I113: 6.036563172e-05 | J113: 0.01212027003 | K113: 0.07281520614 | M113: 0.03015133002 | N113: 0.02317305872 | O113: 0 | P113: 0 | Q113: 2.959527104e-05 | R113: 0.01212027003 | S113: 0.053353984
A114: 2004 | B114: 1 | C114: 5 | D114: 16 | E114: 0.04221926356 | F114: 0.02034662026 | G114: 0 | H114: 0 | I114: 6.036563172e-05 | J114: 0.01134636116 | K114: 0.07397261061 | M114: 0.03209872457 | N114: 0.0224770029 | O114: 0 | P114: 0 | Q114: 2.959527104e-05 | R114: 0.01134636116 | S114: 0.05460532274
A115: 2004 | B115: 1 | C115: 5 | D115: 17 | E115: 0.04686264683 | F115: 0.02034818767 | G115: 0 | H115: 0 | I115: 6.036563172e-05 | J115: 0.01126732733 | K115: 0.07853852747 | M115: 0.03562902492 | N115: 0.02247873443 | O115: 0 | P115: 0 | Q115: 2.959527104e-05 | R115: 0.01126732733 | S115: 0.05813735462
A116: 2004 | B116: 1 | C116: 5 | D116: 18 | E116: 0.05448266783 | F116: 0.01995700524 | G116: 0 | H116: 0 | I116: 6.036563172e-05 | J116: 0.01071081831 | K116: 0.08521085701 | M116: 0.04142242193 | N116: 0.02204659343 | O116: 0 | P116: 0 | Q116: 2.959527104e-05 | R116: 0.01071081831 | S116: 0.06349861063
A117: 2004 | B117: 1 | C117: 5 | D117: 19 | E117: 0.0541315461 | F117: 0.0196163043 | G117: 0.00121485 | H117: 1.61e-06 | I117: 6.036563172e-05 | J117: 0.009121779721 | K117: 0.08414645575 | M117: 0.04115546891 | N117: 0.02167021957 | O117: 0.0004851308595 | P117: 2.987494535e-06 | Q117: 2.959527104e-05 | R117: 0.009121779721 | S117: 0.06334340211
A118: 2004 | B118: 1 | C118: 5 | D118: 20 | E118: 0.0535609451 | F118: 0.01899782815 | G118: 0.00121485 | H118: 1.61e-06 | I118: 6.036563172e-05 | J118: 0.008507567435 | K118: 0.08234316632 | M118: 0.04072164883 | N118: 0.02098698619 | O118: 0.0004851308595 | P118: 2.987494535e-06 | Q118: 2.959527104e-05 | R118: 0.008507567435 | S118: 0.06222634864
A119: 2004 | B119: 1 | C119: 5 | D119: 21 | E119: 0.04981199221 | F119: 0.01903059175 | G119: 0.00121485 | H119: 1.61e-06 | I119: 6.036563172e-05 | J119: 0.009387069735 | K119: 0.07950647932 | M119: 0.03787137158 | N119: 0.02102318029 | O119: 0.0004851308595 | P119: 2.987494535e-06 | Q119: 2.959527104e-05 | R119: 0.009387069735 | S119: 0.05941226549
A120: 2004 | B120: 1 | C120: 5 | D120: 22 | E120: 0.04651439747 | F120: 0.01806778063 | G120: 0.00121485 | H120: 1.61e-06 | I120: 6.036563172e-05 | J120: 0.008688870573 | K120: 0.07454787431 | M120: 0.03536425573 | N120: 0.01995955851 | O120: 0.0004851308595 | P120: 2.987494535e-06 | Q120: 2.959527104e-05 | R120: 0.008688870573 | S120: 0.05584152787
A121: 2004 | B121: 1 | C121: 5 | D121: 23 | E121: 0.04360238155 | F121: 0.01728807309 | G121: 0.00121485 | H121: 1.61e-06 | I121: 6.036563172e-05 | J121: 0.007439210261 | K121: 0.06960649053 | M121: 0.03315029013 | N121: 0.01909821209 | O121: 0.0004851308595 | P121: 2.987494535e-06 | Q121: 2.959527104e-05 | R121: 0.007439210261 | S121: 0.05276621584
A122: 2004 | B122: 1 | C122: 5 | D122: 24 | E122: 0.0351058324 | F122: 0.01686744068 | G122: 0.00121485 | H122: 1.61e-06 | I122: 6.036563172e-05 | J122: 0.01027826311 | K122: 0.06352836182 | M122: 0.02669048084 | N122: 0.01863353757 | O122: 0.0004851308595 | P122: 2.987494535e-06 | Q122: 2.959527104e-05 | R122: 0.01027826311 | S122: 0.04584173203
A123: 2004 | B123: 1 | C123: 6 | D123: 1 | E123: 0.0300479337 | F123: 0.01659189987 | G123: 0.00121485 | H123: 1.61e-06 | I123: 6.036563172e-05 | J123: 0.01102078003 | K123: 0.05893743923 | M123: 0.02284503012 | N123: 0.0183291464 | O123: 0.0004851308595 | P123: 2.987494535e-06 | Q123: 2.959527104e-05 | R123: 0.01102078003 | S123: 0.04169189015
A124: 2004 | B124: 1 | C124: 6 | D124: 2 | E124: 0.02933352279 | F124: 0.01590407728 | G124: 0.00121485 | H124: 1.61e-06 | I124: 6.036563172e-05 | J124: 0.01157352827 | K124: 0.05808795398 | M124: 0.02230187335 | N124: 0.0175693057 | O124: 0.0004851308595 | P124: 2.987494535e-06 | Q124: 2.959527104e-05 | R124: 0.01157352827 | S124: 0.04038889267
A125: 2004 | B125: 1 | C125: 6 | D125: 3 | E125: 0.02932419205 | F125: 0.01577156635 | G125: 0.00121485 | H125: 1.61e-06 | I125: 6.036563172e-05 | J125: 0.01145478868 | K125: 0.05782737271 | M125: 0.02229477931 | N125: 0.01742292027 | O125: 0.0004851308595 | P125: 2.987494535e-06 | Q125: 2.959527104e-05 | R125: 0.01145478868 | S125: 0.04023541321
A126: 2004 | B126: 1 | C126: 6 | D126: 4 | E126: 0.02980617566 | F126: 0.0154727676 | G126: 0.00121485 | H126: 1.61e-06 | I126: 6.036563172e-05 | J126: 0.01181360615 | K126: 0.05836937505 | M126: 0.02266122482 | N126: 0.01709283595 | O126: 0.0004851308595 | P126: 2.987494535e-06 | Q126: 2.959527104e-05 | R126: 0.01181360615 | S126: 0.04027177439
A127: 2004 | B127: 1 | C127: 6 | D127: 5 | E127: 0.03101200328 | F127: 0.01556284248 | G127: 0.00121485 | H127: 1.61e-06 | I127: 6.036563172e-05 | J127: 0.01186575577 | K127: 0.05971742716 | M127: 0.02357799895 | N127: 0.01719234207 | O127: 0.0004851308595 | P127: 2.987494535e-06 | Q127: 2.959527104e-05 | R127: 0.01186575577 | S127: 0.04128805464
A128: 2004 | B128: 1 | C128: 6 | D128: 6 | E128: 0.03323665872 | F128: 0.01612590001 | G128: 0.00121485 | H128: 1.61e-06 | I128: 6.036563172e-05 | J128: 0.01122694404 | K128: 0.0618663284 | M128: 0.02526937383 | N128: 0.01781435426 | O128: 0.0004851308595 | P128: 2.987494535e-06 | Q128: 2.959527104e-05 | R128: 0.01122694404 | S128: 0.04360144172
A129: 2004 | B129: 1 | C129: 6 | D129: 7 | E129: 0.04017671575 | F129: 0.01707307898 | G129: 0 | H129: 0 | I129: 6.036563172e-05 | J129: 0.01062588872 | K129: 0.06793604908 | M129: 0.03054580361 | N129: 0.01886070713 | O129: 0 | P129: 0 | Q129: 2.959527104e-05 | R129: 0.01062588872 | S129: 0.049436106
A130: 2004 | B130: 1 | C130: 6 | D130: 8 | E130: 0.04584785375 | F130: 0.01893796012 | G130: 0 | H130: 0 | I130: 6.036563172e-05 | J130: 0.01228304395 | K130: 0.07712922345 | M130: 0.03485749171 | N130: 0.02092084971 | O130: 0 | P130: 0 | Q130: 2.959527104e-05 | R130: 0.01228304395 | S130: 0.05580793669
A131: 2004 | B131: 1 | C131: 6 | D131: 9 | E131: 0.0467333851 | F131: 0.02042858924 | G131: 0 | H131: 0 | I131: 6.036563172e-05 | J131: 0.01386766758 | K131: 0.08109000754 | M131: 0.035530749 | N131: =F131*W$5 -> 0.0225675544 | O131: =G131*X$5 -> 0 | P131: =H131*Y$5 -> 0 | Q131: =I131*Z$5 -> 2.959527104e-05 | R131: =J131 -> 0.01386766758 | S131: 0.05812789867
A132: 2004 | B132: 1 | C132: 6 | D132: 10 | E132: 0.04274883839 | F132: 0.0213434941 | G132: 0 | H132: 0 | I132: 6.036563172e-05 | J132: 0.01633972 | K132: 0.08049241813 | M132: =E132*V$5 -> 0.03250135302 | N132: 0.02357825391 | O132: 0 | P132: 0 | Q132: 2.959527104e-05 | R132: 0.01633972 | S132: =SUM(M132:Q132) -> 0.05610920221
A133: 2004 | B133: 1 | C133: 6 | D133: 11 | E133: 0.04183398523 | F133: 0.02183410239 | G133: 0 | H133: 0 | I133: 6.036563172e-05 | J133: 0.0161802713 | K133: 0.07990872455 | M133: 0.03180580277 | N133: 0.0241202311 | O133: 0 | P133: 0 | Q133: 2.959527104e-05 | R133: 0.0161802713 | S133: 0.05595562914
A134: 2004 | B134: 1 | C134: 6 | D134: 12 | E134: 0.04243041456 | F134: 0.02146992552 | G134: 0 | H134: 0 | I134: 6.036563172e-05 | J134: 0.01466770587 | K134: 0.07862841158 | M134: 0.03225925977 | N134: 0.02371792327 | O134: 0 | P134: 0 | Q134: 2.959527104e-05 | R134: 0.01466770587 | S134: 0.05600677831
A135: 2004 | B135: 1 | C135: 6 | D135: 13 | E135: 0.0403856288 | F135: 0.02152645428 | G135: 0 | H135: 0 | I135: 6.036563172e-05 | J135: 0.01440109744 | K135: 0.07637354615 | M135: 0.03070463732 | N135: 0.02378037084 | O135: 0 | P135: 0 | Q135: 2.959527104e-05 | R135: 0.01440109744 | S135: 0.05451460343
A136: 2004 | B136: 1 | C136: 6 | D136: 14 | E136: 0.03909488943 | F136: 0.02153264393 | G136: 0 | H136: 0 | I136: 6.036563172e-05 | J136: 0.01490391544 | K136: 0.07559181443 | M136: 0.02972330596 | N136: 0.02378720858 | O136: 0 | P136: 0 | Q136: 2.959527104e-05 | R136: 0.01490391544 | S136: 0.05354010981
A137: 2004 | B137: 1 | C137: 6 | D137: 15 | E137: 0.03835442051 | F137: 0.0210916108 | G137: 0 | H137: 0 | I137: 6.036563172e-05 | J137: 0.01381144534 | K137: 0.07331784228 | M137: 0.02916033763 | N137: 0.0232999973 | O137: 0 | P137: 0 | Q137: 2.959527104e-05 | R137: 0.01381144534 | S137: 0.0524899302
A138: 2004 | B138: 1 | C138: 6 | D138: 16 | E138: 0.03883117736 | F138: 0.02087957041 | G138: 0 | H138: 0 | I138: 6.036563172e-05 | J138: 0.01476623274 | K138: 0.07453734614 | M138: 0.0295228093 | N138: 0.02306575533 | O138: 0 | P138: 0 | Q138: 2.959527104e-05 | R138: 0.01476623274 | S138: 0.05261815991
A139: 2004 | B139: 1 | C139: 6 | D139: 17 | E139: 0.04397414356 | F139: 0.02056664455 | G139: 0 | H139: 0 | I139: 6.036563172e-05 | J139: 0.01337234036 | K139: 0.0779734941 | M139: 0.03343293567 | N139: 0.02272006472 | O139: 0 | P139: 0 | Q139: 2.959527104e-05 | R139: 0.01337234036 | S139: 0.05618259566
A140: 2004 | B140: 1 | C140: 6 | D140: 18 | E140: 0.05009517902 | F140: 0.0207556416 | G140: 0 | H140: 0 | I140: 6.036563172e-05 | J140: 0.01274637355 | K140: 0.08365755981 | M140: 0.03808667462 | N140: 0.02292885062 | O140: 0 | P140: 0 | Q140: 2.959527104e-05 | R140: 0.01274637355 | S140: 0.0610451205
A141: 2004 | B141: 1 | C141: 6 | D141: 19 | E141: 0.05213215523 | F141: 0.02031994206 | G141: 0.00121485 | H141: 1.61e-06 | I141: 6.036563172e-05 | J141: 0.01089972223 | K141: 0.08462864516 | M141: 0.03963535957 | N141: 0.02244753138 | O141: 0.0004851308595 | P141: 2.987494535e-06 | Q141: 2.959527104e-05 | R141: 0.01089972223 | S141: 0.06260060457
A142: 2004 | B142: 1 | C142: 6 | D142: 20 | E142: 0.05260030956 | F142: 0.01959236264 | G142: 0.00121485 | H142: 1.61e-06 | I142: 6.036563172e-05 | J142: 0.00868886688 | K142: 0.0821583647 | M142: 0.03999129086 | N142: 0.02164377111 | O142: 0.0004851308595 | P142: 2.987494535e-06 | Q142: 2.959527104e-05 | R142: 0.00868886688 | S142: 0.06215277559
A143: 2004 | B143: 1 | C143: 6 | D143: 21 | E143: 0.0505092563 | F143: 0.01900583069 | G143: 0.00121485 | H143: 1.61e-06 | I143: 6.036563172e-05 | J143: 0.008380241815 | K143: 0.07917215444 | M143: 0.03840149187 | N143: 0.02099582664 | O143: 0.0004851308595 | P143: 2.987494535e-06 | Q143: 2.959527104e-05 | R143: 0.008380241815 | S143: 0.05991503213
A144: 2004 | B144: 1 | C144: 6 | D144: 22 | E144: 0.04689117577 | F144: 0.01820659824 | G144: 0.00121485 | H144: 1.61e-06 | I144: 6.036563172e-05 | J144: 0.008682156892 | K144: 0.07505675653 | M144: 0.03565071508 | N144: 0.02011291095 | O144: 0.0004851308595 | P144: 2.987494535e-06 | Q144: 2.959527104e-05 | R144: 0.008682156892 | S144: 0.05628133965
A145: 2004 | B145: 1 | C145: 6 | D145: 23 | E145: 0.04449199493 | F145: 0.01727871177 | G145: 0.00121485 | H145: 1.61e-06 | I145: 6.036563172e-05 | J145: 0.007442173168 | K145: 0.0704897055 | M145: 0.03382665093 | N145: 0.01908787059 | O145: 0.0004851308595 | P145: 2.987494535e-06 | Q145: 2.959527104e-05 | R145: 0.007442173168 | S145: 0.05343223515
A146: 2004 | B146: 1 | C146: 6 | D146: 24 | E146: 0.03626894225 | F146: 0.01696754304 | G146: 0.00121485 | H146: 1.61e-06 | I146: 6.036563172e-05 | J146: 0.009726012652 | K146: 0.06423932357 | M146: 0.02757477724 | N146: 0.0187441211 | O146: 0.0004851308595 | P146: 2.987494535e-06 | Q146: 2.959527104e-05 | R146: 0.009726012652 | S146: 0.04683661196
A147: 2004 | B147: 1 | C147: 7 | D147: 1 | E147: 0.03035666523 | F147: 0.01651295305 | G147: 0.00121485 | H147: 1.61e-06 | I147: 6.036563172e-05 | J147: 0.01115248462 | K147: 0.05929892854 | M147: 0.02307975446 | N147: 0.0182419335 | O147: 0.0004851308595 | P147: 2.987494535e-06 | Q147: 2.959527104e-05 | R147: 0.01115248462 | S147: 0.04183940158
A148: 2004 | B148: 1 | C148: 7 | D148: 2 | E148: 0.02965782494 | F148: 0.01580093517 | G148: 0.00121485 | H148: 1.61e-06 | I148: 6.036563172e-05 | J148: 0.01170864991 | K148: 0.05844423565 | M148: 0.02254843581 | N148: 0.01745536414 | O148: 0.0004851308595 | P148: 2.987494535e-06 | Q148: 2.959527104e-05 | R148: 0.01170864991 | S148: 0.04052151357
A149: 2004 | B149: 1 | C149: 7 | D149: 3 | E149: 0.02969143823 | F149: 0.01556673659 | G149: 0.00121485 | H149: 1.61e-06 | I149: 6.036563172e-05 | J149: 0.01164705235 | K149: 0.05818205279 | M149: 0.02257399152 | N149: 0.01719664391 | O149: 0.0004851308595 | P149: 2.987494535e-06 | Q149: 2.959527104e-05 | R149: 0.01164705235 | S149: 0.04028834906
A150: 2004 | B150: 1 | C150: 7 | D150: 4 | E150: 0.03016891265 | F150: 0.01529038076 | G150: 0.00121485 | H150: 1.61e-06 | I150: 6.036563172e-05 | J150: 0.01199126427 | K150: 0.05872738331 | M150: 0.02293700875 | N150: 0.01689135239 | O150: 0.0004851308595 | P150: 2.987494535e-06 | Q150: 2.959527104e-05 | R150: 0.01199126427 | S150: 0.04034607476
A151: 2004 | B151: 1 | C151: 7 | D151: 5 | E151: 0.03136737354 | F151: 0.0154267957 | G151: 0.00121485 | H151: 1.61e-06 | I151: 6.036563172e-05 | J151: 0.01201270362 | K151: 0.06008369849 | M151: 0.02384818206 | N151: 0.01704205058 | O151: 0.0004851308595 | P151: 2.987494535e-06 | Q151: 2.959527104e-05 | R151: 0.01201270362 | S151: 0.04140794627
A152: 2004 | B152: 1 | C152: 7 | D152: 6 | E152: 0.03363061968 | F152: 0.01594659262 | G152: 0.00121485 | H152: 1.61e-06 | I152: 6.036563172e-05 | J152: 0.01139174906 | K152: 0.062245787 | M152: 0.02556889693 | N152: 0.01761627258 | O152: 0.0004851308595 | P152: 2.987494535e-06 | Q152: 2.959527104e-05 | R152: 0.01139174906 | S152: 0.04370288314
A153: 2004 | B153: 1 | C153: 7 | D153: 7 | E153: 0.04061684733 | F153: 0.01691444316 | G153: 0 | H153: 0 | I153: 6.036563172e-05 | J153: 0.01076107254 | K153: 0.06835272866 | M153: 0.03088042958 | N153: 0.01868546142 | O153: 0 | P153: 0 | Q153: 2.959527104e-05 | R153: 0.01076107254 | S153: 0.04959548628
A154: 2004 | B154: 1 | C154: 7 | D154: 8 | E154: 0.0464254891 | F154: 0.01850313429 | G154: 0 | H154: 0 | I154: 6.036563172e-05 | J154: 0.0126133063 | K154: 0.07760229532 | M154: 0.03529665992 | N154: 0.02044049565 | O154: 0 | P154: 0 | Q154: 2.959527104e-05 | R154: 0.0126133063 | S154: 0.05576675084
A155: 2004 | B155: 1 | C155: 7 | D155: 9 | E155: 0.04729192974 | F155: 0.02001831228 | G155: 0 | H155: 0 | I155: 6.036563172e-05 | J155: 0.01421676102 | K155: 0.08158736867 | M155: 0.0359554028 | N155: 0.0221143196 | O155: 0 | P155: 0 | Q155: 2.959527104e-05 | R155: 0.01421676102 | S155: 0.05809931767
A156: 2004 | B156: 1 | C156: 7 | D156: 10 | E156: 0.0432962395 | F156: 0.02090724738 | G156: 0 | H156: 0 | I156: 6.036563172e-05 | J156: 0.01672226125 | K156: 0.08098611376 | M156: 0.03291753454 | N156: 0.0230963302 | O156: 0 | P156: 0 | Q156: 2.959527104e-05 | R156: 0.01672226125 | S156: 0.05604346001
A157: 2004 | B157: 1 | C157: 7 | D157: 11 | E157: 0.04235413611 | F157: 0.02145930534 | G157: 0 | H157: 0 | I157: 6.036563172e-05 | J157: 0.01652503309 | K157: 0.08039884017 | M157: 0.03220126631 | N157: 0.02370619111 | O157: 0 | P157: 0 | Q157: 2.959527104e-05 | R157: 0.01652503309 | S157: 0.05593705269
A158: 2004 | B158: 1 | C158: 7 | D158: 12 | E158: 0.04291980141 | F158: 0.02116023713 | G158: 0 | H158: 0 | I158: 6.036563172e-05 | J158: 0.01497027487 | K158: 0.07911067904 | M158: 0.03263133385 | N158: 0.02337580911 | O158: 0 | P158: 0 | Q158: 2.959527104e-05 | R158: 0.01497027487 | S158: 0.05603673824
A159: 2004 | B159: 1 | C159: 7 | D159: 13 | E159: 0.04089277844 | F159: 0.02113116291 | G159: 0 | H159: 0 | I159: 6.036563172e-05 | J159: 0.01475767445 | K159: 0.07684198142 | M159: 0.0310902162 | N159: 0.02334369069 | O159: 0 | P159: 0 | Q159: 2.959527104e-05 | R159: 0.01475767445 | S159: 0.05446350216
A160: 2004 | B160: 1 | C160: 7 | D160: 14 | E160: 0.03957939272 | F160: 0.02117994356 | G160: 0 | H160: 0 | I160: 6.036563172e-05 | J160: 0.01523574766 | K160: 0.07605544957 | M160: 0.03009166713 | N160: 0.0233975789 | O160: 0 | P160: 0 | Q160: 2.959527104e-05 | R160: 0.01523574766 | S160: 0.0535188413
A161: 2004 | B161: 1 | C161: 7 | D161: 15 | E161: 0.03886063642 | F161: 0.02066194931 | G161: 0 | H161: 0 | I161: 6.036563172e-05 | J161: 0.01418458049 | K161: 0.07376753186 | M161: 0.02954520662 | N161: 0.02282534832 | O161: 0 | P161: 0 | Q161: 2.959527104e-05 | R161: 0.01418458049 | S161: 0.05240015021
A162: 2004 | B162: 1 | C162: 7 | D162: 16 | E162: 0.03925026891 | F162: 0.02066134525 | G162: 0 | H162: 0 | I162: 6.036563172e-05 | J162: 0.01502253563 | K162: 0.07499451542 | M162: 0.02984143884 | N162: 0.02282468101 | O162: 0 | P162: 0 | Q162: 2.959527104e-05 | R162: 0.01502253563 | S162: 0.05269571512
A163: 2004 | B163: 1 | C163: 7 | D163: 17 | E163: 0.04423862029 | F163: 0.02081070119 | G163: 0 | H163: 0 | I163: 6.036563172e-05 | J163: 0.01334205443 | K163: 0.07845174154 | M163: 0.03363401368 | N163: 0.02298967519 | O163: 0 | P163: 0 | Q163: 2.959527104e-05 | R163: 0.01334205443 | S163: 0.05665328414
A164: 2004 | B164: 1 | C164: 7 | D164: 18 | E164: 0.0503630614 | F164: 0.02106412566 | G164: 0 | H164: 0 | I164: 6.036563172e-05 | J164: 0.01268311473 | K164: 0.08417066742 | M164: 0.0382903419 | N164: 0.02326963434 | O164: 0 | P164: 0 | Q164: 2.959527104e-05 | R164: 0.01268311473 | S164: 0.06158957151
A165: 2004 | B165: 1 | C165: 7 | D165: 19 | E165: 0.05251338115 | F165: 0.0203610556 | G165: 0.00121485 | H165: 1.61e-06 | I165: 6.036563172e-05 | J165: 0.01099644608 | K165: 0.08514770846 | M165: 0.03992520039 | N165: 0.02249294969 | O165: 0.0004851308595 | P165: 2.987494535e-06 | Q165: 2.959527104e-05 | R165: 0.01099644608 | S165: 0.0629358637
A166: 2004 | B166: 1 | C166: 7 | D166: 20 | E166: 0.05302959692 | F166: 0.01953031527 | G166: 0.00121485 | H166: 1.61e-06 | I166: 6.036563172e-05 | J166: 0.008825546339 | K166: 0.08266228416 | M166: 0.04031767213 | N166: 0.0215752271 | O166: 0.0004851308595 | P166: 2.987494535e-06 | Q166: 2.959527104e-05 | R166: 0.008825546339 | S166: 0.06241061286
A167: 2004 | B167: 1 | C167: 7 | D167: 21 | E167: 0.05092259781 | F167: 0.01894702462 | G167: 0.00121485 | H167: 1.61e-06 | I167: 6.036563172e-05 | J167: 0.008511305736 | K167: 0.0796577538 | M167: 0.03871574973 | N167: 0.02093086331 | O167: 0.0004851308595 | P167: 2.987494535e-06 | Q167: 2.959527104e-05 | R167: 0.008511305736 | S167: 0.06016432666
A168: 2004 | B168: 1 | C168: 7 | D168: 22 | E168: 0.04726426612 | F168: 0.01820138912 | G168: 0.00121485 | H168: 1.61e-06 | I168: 6.036563172e-05 | J168: 0.008774635578 | K168: 0.07551711646 | M168: 0.03593437053 | N168: 0.02010715641 | O168: 0.0004851308595 | P168: 2.987494535e-06 | Q168: 2.959527104e-05 | R168: 0.008774635578 | S168: 0.05655924057
A169: 2004 | B169: 1 | C169: 7 | D169: 23 | E169: 0.04488115176 | F169: 0.01721897061 | G169: 0.00121485 | H169: 1.61e-06 | I169: 6.036563172e-05 | J169: 0.007545105497 | K169: 0.07092205351 | M169: 0.03412252151 | N169: 0.01902187427 | O169: 0.0004851308595 | P169: 2.987494535e-06 | Q169: 2.959527104e-05 | R169: 0.007545105497 | S169: 0.05366210941
A170: 2004 | B170: 1 | C170: 7 | D170: 24 | E170: 0.03663712778 | F170: 0.01684676718 | G170: 0.00121485 | H170: 1.61e-06 | I170: 6.036563172e-05 | J170: 0.009872609769 | K170: 0.06463333036 | M170: 0.02785470363 | N170: 0.01861069946 | O170: 0.0004851308595 | P170: 2.987494535e-06 | Q170: 2.959527104e-05 | R170: 0.009872609769 | S170: 0.04698311671
A171: 2004 | B171: 1 | C171: 8 | D171: 1 | E171: 0.02892664627 | F171: 0.01638042275 | G171: 0.00121485 | H171: 1.61e-06 | I171: 6.036563172e-05 | J171: 0.01078708844 | K171: 0.0573709831 | M171: 0.02199253074 | N171: 0.01809552668 | O171: 0.0004851308595 | P171: 2.987494535e-06 | Q171: 2.959527104e-05 | R171: 0.01078708844 | S171: 0.04060577104
A172: 2004 | B172: 1 | C172: 8 | D172: 2 | E172: 0.02800206759 | F172: 0.01616222992 | G172: 0.00121485 | H172: 1.61e-06 | I172: 6.036563172e-05 | J172: 0.01110295224 | K172: 0.05654407539 | M172: 0.0212895863 | N172: 0.01785448808 | O172: 0.0004851308595 | P172: 2.987494535e-06 | Q172: 2.959527104e-05 | R172: 0.01110295224 | S172: 0.039661788
A173: 2004 | B173: 1 | C173: 8 | D173: 3 | E173: 0.02805351345 | F173: 0.01583926845 | G173: 0.00121485 | H173: 1.61e-06 | I173: 6.036563172e-05 | J173: 0.01112081012 | K173: 0.05629041765 | M173: 0.02132869988 | N173: 0.01749771108 | O173: 0.0004851308595 | P173: 2.987494535e-06 | Q173: 2.959527104e-05 | R173: 0.01112081012 | S173: 0.03934412459
A174: 2004 | B174: 1 | C174: 8 | D174: 4 | E174: 0.02859362209 | F174: 0.01534460299 | G174: 0.00121485 | H174: 1.61e-06 | I174: 6.036563172e-05 | J174: 0.01160296605 | K174: 0.05681801677 | M174: 0.02173933703 | N174: 0.01695125193 | O174: 0.0004851308595 | P174: 2.987494535e-06 | Q174: 2.959527104e-05 | R174: 0.01160296605 | S174: 0.03920830259
A175: 2004 | B175: 1 | C175: 8 | D175: 5 | E175: 0.02978582872 | F175: 0.01535026899 | G175: 0.00121485 | H175: 1.61e-06 | I175: 6.036563172e-05 | J175: 0.01171731381 | K175: 0.05813023716 | M175: 0.02264575532 | N175: 0.01695751119 | O175: 0.0004851308595 | P175: 2.987494535e-06 | Q175: 2.959527104e-05 | R175: 0.01171731381 | S175: 0.04012098013
A176: 2004 | B176: 1 | C176: 8 | D176: 6 | E176: 0.03194926108 | F176: 0.01582984417 | G176: 0.00121485 | H176: 1.61e-06 | I176: 6.036563172e-05 | J176: 0.01116609596 | K176: 0.06022202685 | M176: 0.02429058314 | N176: 0.01748730004 | O176: 0.0004851308595 | P176: 2.987494535e-06 | Q176: 2.959527104e-05 | R176: 0.01116609596 | S176: 0.04229559681
A177: 2004 | B177: 1 | C177: 8 | D177: 7 | E177: 0.03856121626 | F177: 0.0170146977 | G177: 0 | H177: 0 | I177: 6.036563172e-05 | J177: 0.01049414015 | K177: 0.06613041974 | M177: 0.02931756159 | N177: 0.01879621307 | O177: 0 | P177: 0 | Q177: 2.959527104e-05 | R177: 0.01049414015 | S177: 0.04814336993
A178: 2004 | B178: 1 | C178: 8 | D178: 8 | E178: 0.04403472602 | F178: 0.01905841928 | G178: 0 | H178: 0 | I178: 6.036563172e-05 | J178: 0.0119257488 | K178: 0.07507925974 | M178: 0.03347899568 | N178: 0.02105392148 | O178: 0 | P178: 0 | Q178: 2.959527104e-05 | R178: 0.0119257488 | S178: 0.05456251243
A179: 2004 | B179: 1 | C179: 8 | D179: 9 | E179: 0.04483215668 | F179: 0.02087936107 | G179: 0 | H179: 0 | I179: 6.036563172e-05 | J179: 0.01316289134 | K179: 0.07893477473 | M179: 0.03408527122 | N179: 0.02306552407 | O179: 0 | P179: 0 | Q179: 2.959527104e-05 | R179: 0.01316289134 | S179: 0.05718039057
A180: 2004 | B180: 1 | C180: 8 | D180: 10 | E180: 0.04084135204 | F180: 0.02204624493 | G180: 0 | H180: 0 | I180: 6.036563172e-05 | J180: 0.0154050965 | K180: 0.0783530591 | M180: 0.03105111742 | N180: 0.02435458592 | O180: 0 | P180: 0 | Q180: 2.959527104e-05 | R180: 0.0154050965 | S180: 0.05543529862
A181: 2004 | B181: 1 | C181: 8 | D181: 11 | E181: 0.03990340759 | F181: 0.02263145696 | G181: 0 | H181: 0 | I181: 6.036563172e-05 | J181: 0.01518965509 | K181: 0.07778488527 | M181: 0.03033801118 | N181: 0.02500107228 | O181: 0 | P181: 0 | Q181: 2.959527104e-05 | R181: 0.01518965509 | S181: 0.05536867873
A182: 2004 | B182: 1 | C182: 8 | D182: 12 | E182: 0.04055704119 | F182: 0.02217972207 | G182: 0 | H182: 0 | I182: 6.036563172e-05 | J182: 0.01374147421 | K182: 0.07653860309 | M182: 0.0308349598 | N182: 0.02450203871 | O182: 0 | P182: 0 | Q182: 2.959527104e-05 | R182: 0.01374147421 | S182: 0.05536659378
A183: 2004 | B183: 1 | C183: 8 | D183: 13 | E183: 0.03861281217 | F183: 0.02215336255 | G183: 0 | H183: 0 | I183: 6.036563172e-05 | J183: 0.01351712733 | K183: 0.07434366768 | M183: 0.02935678926 | N183: 0.02447291923 | O183: 0 | P183: 0 | Q183: 2.959527104e-05 | R183: 0.01351712733 | S183: 0.05385930376
A184: 2004 | B184: 1 | C184: 8 | D184: 14 | E184: 0.0373598667 | F184: 0.02212922022 | G184: 0 | H184: 0 | I184: 6.036563172e-05 | J184: 0.01403325632 | K184: 0.07358270887 | M184: 0.02840419207 | N184: 0.02444624909 | O184: 0 | P184: 0 | Q184: 2.959527104e-05 | R184: 0.01403325632 | S184: 0.05288003643
A185: 2004 | B185: 1 | C185: 8 | D185: 15 | E185: 0.03671053451 | F185: 0.0215481939 | G185: 0 | H185: 0 | I185: 6.036563172e-05 | J185: 0.01305008287 | K185: 0.07136917691 | M185: 0.02791051375 | N185: 0.0238043867 | O185: 0 | P185: 0 | Q185: 2.959527104e-05 | R185: 0.01305008287 | S185: 0.05174449572
A186: 2004 | B186: 1 | C186: 8 | D186: 16 | E186: 0.03721600721 | F186: 0.02131165626 | G186: 0 | H186: 0 | I186: 6.036563172e-05 | J186: 0.01396824431 | K186: 0.07255627341 | M186: 0.02829481768 | N186: 0.0235430825 | O186: 0 | P186: 0 | Q186: 2.959527104e-05 | R186: 0.01396824431 | S186: 0.05186749546
A187: 2004 | B187: 1 | C187: 8 | D187: 17 | E187: 0.04227623864 | F187: 0.02091974681 | G187: 0 | H187: 0 | I187: 6.036563172e-05 | J187: 0.01264474022 | K187: 0.07590109131 | M187: 0.03214204194 | N187: 0.02311013838 | O187: 0 | P187: 0 | Q187: 2.959527104e-05 | R187: 0.01264474022 | S187: 0.05528177559
A188: 2004 | B188: 1 | C188: 8 | D188: 18 | E188: 0.04837064209 | F188: 0.02085989869 | G188: 0 | H188: 0 | I188: 6.036563172e-05 | J188: 0.01214317452 | K188: 0.08143408093 | M188: 0.03677553294 | N188: 0.02304402389 | O188: 0 | P188: 0 | Q188: 2.959527104e-05 | R188: 0.01214317452 | S188: 0.0598491521
A189: 2004 | B189: 1 | C189: 8 | D189: 19 | E189: 0.05051044032 | F189: 0.02006439951 | G189: 0.00121485 | H189: 1.61e-06 | I189: 6.036563172e-05 | J189: 0.01052769406 | K189: 0.08237935953 | M189: 0.03840239206 | N189: 0.02216523237 | O189: 0.0004851308595 | P189: 2.987494535e-06 | Q189: 2.959527104e-05 | R189: 0.01052769406 | S189: 0.06108533806
A190: 2004 | B190: 1 | C190: 8 | D190: 20 | E190: 0.05094061002 | F190: 0.01934858519 | G190: 0.00121485 | H190: 1.61e-06 | I190: 6.036563172e-05 | J190: 0.00840871627 | K190: 0.07997473711 | M190: 0.03872944416 | N190: 0.02137446907 | O190: 0.0004851308595 | P190: 2.987494535e-06 | Q190: 2.959527104e-05 | R190: 0.00840871627 | S190: 0.06062162686
A191: 2004 | B191: 1 | C191: 8 | D191: 21 | E191: 0.04892182907 | F191: 0.01873987248 | G191: 0.00121485 | H191: 1.61e-06 | I191: 6.036563172e-05 | J191: 0.008129362578 | K191: 0.07706788976 | M191: 0.03719459281 | N191: 0.0207020214 | O191: 0.0004851308595 | P191: 2.987494535e-06 | Q191: 2.959527104e-05 | R191: 0.008129362578 | S191: 0.05841432784
A192: 2004 | B192: 1 | C192: 8 | D192: 22 | E192: 0.04533716376 | F192: 0.01806885738 | G192: 0.00121485 | H192: 1.61e-06 | I192: 6.036563172e-05 | J192: 0.008379026679 | K192: 0.07306187345 | M192: 0.03446922115 | N192: 0.019960748 | O192: 0.0004851308595 | P192: 2.987494535e-06 | Q192: 2.959527104e-05 | R192: 0.008379026679 | S192: 0.05494768277
A193: 2004 | B193: 1 | C193: 8 | D193: 23 | E193: 0.04287772288 | F193: 0.01735334427 | G193: 0.00121485 | H193: 1.61e-06 | I193: 6.036563172e-05 | J193: 0.007108313213 | K193: 0.06861620599 | M193: 0.03259934212 | N193: 0.01917031745 | O193: 0.0004851308595 | P193: 2.987494535e-06 | Q193: 2.959527104e-05 | R193: 0.007108313213 | S193: 0.0522873732
A194: 2004 | B194: 1 | C194: 8 | D194: 24 | E194: 0.03492368517 | F194: 0.01685126674 | G194: 0.00121485 | H194: 1.61e-06 | I194: 6.036563172e-05 | J194: 0.009480173988 | K194: 0.06253195153 | M194: 0.02655199681 | N194: 0.01861567015 | O194: 0.0004851308595 | P194: 2.987494535e-06 | Q194: 2.959527104e-05 | R194: 0.009480173988 | S194: 0.04568538059
A195: 2004 | B195: 1 | C195: 9 | D195: 1 | E195: 0.0319002445 | F195: 0.01671141507 | G195: 0.00121485 | H195: 1.61e-06 | I195: 6.036563172e-05 | J195: 0.01089656175 | K195: 0.06078504695 | M195: 0.02425331651 | N195: =F195*W$5 -> 0.01846117538 | O195: =G195*X$5 -> 0.0004851308595 | P195: =H195*Y$5 -> 2.987494535e-06 | Q195: =I195*Z$5 -> 2.959527104e-05 | R195: =J195 -> 0.01089656175 | S195: 0.04323220551
A196: 2004 | B196: 1 | C196: 9 | D196: 2 | E196: 0.03084671148 | F196: 0.01626127247 | G196: 0.00121485 | H196: 1.61e-06 | I196: 6.036563172e-05 | J196: 0.01164611288 | K196: 0.06003092246 | M196: =E196*V$5 -> 0.02345232987 | N196: 0.01796390082 | O196: 0.0004851308595 | P196: 2.987494535e-06 | Q196: 2.959527104e-05 | R196: 0.01164611288 | S196: =SUM(M196:Q196) -> 0.04193394431
A197: 2004 | B197: 1 | C197: 9 | D197: 3 | E197: 0.03044400148 | F197: 0.01620144944 | G197: 0.00121485 | H197: 1.61e-06 | I197: 6.036563172e-05 | J197: 0.01154913891 | K197: 0.05947141546 | M197: 0.023146155 | N197: 0.01789781406 | O197: 0.0004851308595 | P197: 2.987494535e-06 | Q197: 2.959527104e-05 | R197: 0.01154913891 | S197: 0.04156168268
A198: 2004 | B198: 1 | C198: 9 | D198: 4 | E198: 0.03191577897 | F198: 0.01558324648 | G198: 0.00121485 | H198: 1.61e-06 | I198: 6.036563172e-05 | J198: 0.01156610643 | K198: 0.06034195751 | M198: 0.02426512716 | N198: 0.01721488246 | O198: 0.0004851308595 | P198: 2.987494535e-06 | Q198: 2.959527104e-05 | R198: 0.01156610643 | S198: 0.04199772324
A199: 2004 | B199: 1 | C199: 9 | D199: 5 | E199: 0.03284528011 | F199: 0.01555100828 | G199: 0.00121485 | H199: 1.61e-06 | I199: 6.036563172e-05 | J199: 0.01180002999 | K199: 0.06147314401 | M199: 0.02497181407 | N199: 0.01717926878 | O199: 0.0004851308595 | P199: 2.987494535e-06 | Q199: 2.959527104e-05 | R199: 0.01180002999 | S199: 0.04266879648
A200: 2004 | B200: 1 | C200: 9 | D200: 6 | E200: 0.03442991448 | F200: 0.01619425186 | G200: 0.00121485 | H200: 1.61e-06 | I200: 6.036563172e-05 | J200: 0.01123503621 | K200: 0.06313602818 | M200: 0.02617658975 | N200: 0.01788986286 | O200: 0.0004851308595 | P200: 2.987494535e-06 | Q200: 2.959527104e-05 | R200: 0.01123503621 | S200: 0.04458416623
... 4297 more rows

Sheet 2006 Input to CA model
A2: Feed into OEB Cost Allocation Model (version 50) sheet "I6 Customer Data", row 27
D3: 1 | E3: 2 | F3: 3 | G3: 4 | H3: 5 | I3: 6 | J3: 7 | K3: 8 | L3: 9 | M3: 10 | N3: 11 | O3: 12 | P3: 13 | Q3: 14 | R3: 15 | S3: 16 | T3: 17 | U3: 18 | V3: 19 | W3: 20
B4: ID | C4: Total | D4: Residential | E4: GS>50kW | F4: Street Lighting | G4: Sentinel Lighting | H4: USL | I4: GS<50kW
A6: kWh - 30 year weather normalized amount | C6: =SUM(D6:I6) -> 468300043.1 | D6: 239658158.5 | E6: 146047497.3 | F6: 5353155.35 | G6: 7299.44 | H6: 534100.97 | I6: 76699831.46 | J6: 0 | K6: 0 | L6: 0 | M6: 0 | N6: 0
A9: Feed into OEB Cost Allocation Model sheet (version 50) "I8 Demand Data", row 40, 45, 50, 55, 61 and 67
D10: 1 | E10: 2 | F10: 3 | G10: 4 | H10: 5 | I10: 6 | J10: 7 | K10: 8 | L10: 9 | M10: 10 | N10: 11 | O10: 12 | P10: 13 | Q10: 14 | R10: 15 | S10: 16 | T10: 17 | U10: 18 | V10: 19 | W10: 20
A11: Customer Classes | C11: Total | D11: Residential | E11: GS>50kW | F11: Street Lighting | G11: Sentinel Lighting | H11: USL | I11: GS<50kW
A13: CO-INCIDENT PEAK (kW)
A15: 1 CP
A16: Total Sytem CP | B16: DCP1 | C16: =SUM(D16:I16) -> 90994.93773 | D16: 52245.53213 | E16: 23590.97199 | F16: 0 | G16: 0 | H16: 60.36563172 | I16: 15098.06798
A18: 4 CP
A19: Total Sytem CP | B19: DCP4 | C19: =SUM(D19:I19) -> 346121.9472 | D19: 205823.4802 | E19: 87757.22632 | F19: 1290.373102 | G19: 1.702346992 | H19: 242.1747483 | I19: 51006.99042
A21: 12 CP
A22: Total Sytem CP | B22: DCP12 | C22: =SUM(D22:I22) -> 873581.3835 | D22: 491011.8213 | E22: 250324.7531 | F22: 5020.072793 | G22: 6.897899372 | H22: 729.1382967 | I22: 126488.7001
A24: NON CO_INCIDENT PEAK (kW)
A26: 1 NCP
A27: Classification NCP from Load Data Provider | B27: DNCP1 | C27: =SUM(D27:I27) -> 104158.7728 | D27: 60081.86622 | E27: 25609.11694 | F27: 1404.96 | G27: 1.865549971 | H27: 78.34950269 | I27: 16982.61458
A29: 4 NCP
A30: Classification NCP from Load Data Provider | B30: DNCP4 | C30: =SUM(D30:I30) -> 390421.2458 | D30: 223469.2014 | E30: 98329.20966 | F30: 5213.623472 | G30: 7.103304655 | H30: 268.4472625 | I30: 63133.66063
A32: 12 NCP
A33: Classification NCP from Load Data Provider | B33: DNCP12 | C33: =SUM(D33:I33) -> 993309.0826 | D33: 529017.034 | E33: 276653.0309 | F33: 14692.13854 | G33: 20.05776325 | H33: 729.1382967 | I33: 172197.6832

Sheet Revised Inputs to CA model
A2: Feed into OEB Cost Allocation Model (version 50) sheet "I6 Customer Data", row 27
B4: ID | C4: Total | D4: ='Hourly load shapes by class'!E2 -> Residential | E4: ='Hourly load shapes by class'!F2 -> GS>50kW | F4: ='Hourly load shapes by class'!G2 -> Street Lighting | G4: ='Hourly load shapes by class'!H2 -> Sentinel Lighting | H4: ='Hourly load shapes by class'!I2 -> USL | I4: ='Hourly load shapes by class'!J2 -> GS<50kW
A6: kWh - 30 year weather normalized amount | C6: =SUM(D6:I6) -> 407590610.6 | D6: ='Hourly load shapes by class'!V4 -> 182208797 | E6: ='Hourly load shapes by class'!W4 -> 161339327.1 | F6: 430600.273 | G6: ='Hourly load shapes by class'!Y4 -> 13544.74355 | H6: ='Hourly load shapes by class'!Z4 -> 261852.0261 | I6: ='Hourly load shapes by class'!AA4 -> 63336489.53
A9: Feed into OEB Cost Allocation Model sheet (version 50) "I8 Demand Data", row 40, 45, 50, 55, 61 and 67 | K9: 2018 Demand Data
A11: Customer Classes | C11: Total | D11: ='Hourly load shapes by class'!E2 -> Residential | E11: ='Hourly load shapes by class'!F2 -> GS>50kW | F11: ='Hourly load shapes by class'!G2 -> Street Lighting | G11: ='Hourly load shapes by class'!H2 -> Sentinel Lighting | H11: ='Hourly load shapes by class'!I2 -> USL | I11: ='Hourly load shapes by class'!J2 -> GS<50kW | K11: =D11 -> Residential | L11: =E11 -> GS>50kW | M11: Street Lighting | N11: Sentinel Lighting | O11: USL | P11: GS<50kW
A13: CO-INCIDENT PEAK (kW)
A15: 1 CP
A16: Total Sytem CP | B16: DCP1 | C16: =SUM(D16:I16) -> 90994.93773 | D16: ='Hourly load shapes by class'!E8802*1000000 -> 52245.53213 | E16: ='Hourly load shapes by class'!F8802*1000000 -> 23590.97199 | F16: ='Hourly load shapes by class'!G8802*1000000 -> 0 | G16: ='Hourly load shapes by class'!H8802*1000000 -> 0 | H16: ='Hourly load shapes by class'!I8802*1000000 -> 60.36563172 | I16: ='Hourly load shapes by class'!J8802*1000000 -> 15098.06798 | K16: ='Hourly load shapes by class'!M8802*1000000 -> 44085.3985 | L16: ='Hourly load shapes by class'!N8802*1000000 -> 23714.0942 | M16: ='Hourly load shapes by class'!O8802*1000000 -> 0 | N16: ='Hourly load shapes by class'!P8802*1000000 -> 0 | O16: ='Hourly load shapes by class'!Q8802*1000000 -> 29.59527104 | P16: ='Hourly load shapes by class'!R8802*1000000 -> 10929.28549
A18: 4 CP
A19: Total Sytem CP | B19: DCP4 | C19: =SUM(D19:I19) -> 346121.9472 | D19: =SUM('Hourly load shapes by class'!E8815:E8818)*1000000 -> 205823.4802 | E19: =SUM('Hourly load shapes by class'!F8815:F8818)*1000000 -> 87757.22632 | F19: =SUM('Hourly load shapes by class'!G8815:G8818)*1000000 -> 1290.373102 | G19: =SUM('Hourly load shapes by class'!H8815:H8818)*1000000 -> 1.702346992 | H19: =SUM('Hourly load shapes by class'!I8815:I8818)*1000000 -> 242.1747483 | I19: =SUM('Hourly load shapes by class'!J8815:J8818)*1000000 -> 51006.99042 | K19: =SUM('Hourly load shapes by class'!M8815:M8818)*1000000 -> 160528.1259 | L19: =SUM('Hourly load shapes by class'!N8815:N8818)*1000000 -> 95381.94675 | M19: =SUM('Hourly load shapes by class'!O8815:O8818)*1000000 -> 1019.592149 | N19: =SUM('Hourly load shapes by class'!P8815:P8818)*1000000 -> 5.937833726 | O19: =SUM('Hourly load shapes by class'!Q8815:Q8818)*1000000 -> 118.7302628 | P19: =SUM('Hourly load shapes by class'!R8815:R8818)*1000000 -> 43633.47492
A21: 12 CP
A22: Total Sytem CP | B22: DCP12 | C22: =SUM(D22:I22) -> 873581.3835 | D22: =SUM('Hourly load shapes by class'!E8802:E8813)*1000000 -> 491011.8213 | E22: =SUM('Hourly load shapes by class'!F8802:F8813)*1000000 -> 250324.7531 | F22: =SUM('Hourly load shapes by class'!G8802:G8813)*1000000 -> 5020.072793 | G22: =SUM('Hourly load shapes by class'!H8802:H8813)*1000000 -> 6.897899372 | H22: =SUM('Hourly load shapes by class'!I8802:I8813)*1000000 -> 729.1382967 | I22: =SUM('Hourly load shapes by class'!J8802:J8813)*1000000 -> 126488.7001 | K22: =SUM('Hourly load shapes by class'!M8802:M8813)*1000000 -> 386965.3176 | L22: =SUM('Hourly load shapes by class'!N8802:N8813)*1000000 -> 270731.0635 | M22: =SUM('Hourly load shapes by class'!O8802:O8813)*1000000 -> 2983.304448 | N22: =SUM('Hourly load shapes by class'!P8802:P8813)*1000000 -> 18.76543565 | O22: =SUM('Hourly load shapes by class'!Q8802:Q8813)*1000000 -> 357.4723713 | P22: =SUM('Hourly load shapes by class'!R8802:R8813)*1000000 -> 107094.2125
A24: NON CO_INCIDENT PEAK (kW)
A26: 1 NCP
A27: Classification NCP from Load Data Provider | B27: DNCP1 | C27: =SUM(D27:I27) -> 102437.9384 | D27: ='Hourly load shapes by class'!E8788*1000000 -> 60081.86622 | E27: ='Hourly load shapes by class'!F8788*1000000 -> 24096.63197 | F27: ='Hourly load shapes by class'!G8788*1000000 -> 1214.85 | G27: ='Hourly load shapes by class'!H8788*1000000 -> 1.61 | H27: ='Hourly load shapes by class'!I8788*1000000 -> 60.36563172 | I27: ='Hourly load shapes by class'!J8788*1000000 -> 16982.61458 | K27: ='Hourly load shapes by class'!M8788*1000000 -> 45679.41534 | L27: ='Hourly load shapes by class'!N8788*1000000 -> 26619.6577 | M27: ='Hourly load shapes by class'!O8788*1000000 -> 485.1308595 | N27: ='Hourly load shapes by class'!P8788*1000000 -> 2.987494535 | O27: ='Hourly load shapes by class'!Q8788*1000000 -> 29.59527104 | P27: ='Hourly load shapes by class'!R8788*1000000 -> 16982.61458
A29: 4 NCP
A30: Classification NCP from Load Data Provider | B30: DNCP4 | C30: =SUM(D30:I30) -> 390421.2458 | D30: =(LARGE('Hourly load shapes by class'!E8788:E8799,1)+LARGE('Hourly load shapes by class'!E8788:E8799,2)+LARGE('Hourly load shapes by class'!E8788:E8799,3)+LARGE('Hourly load shapes by class'!E8788:E8799,4))*1000000 -> 223469.2014 | E30: =(LARGE('Hourly load shapes by class'!F8788:F8799,1)+LARGE('Hourly load shapes by class'!F8788:F8799,2)+LARGE('Hourly load shapes by class'!F8788:F8799,3)+LARGE('Hourly load shapes by class'!F8788:F8799,4))*1000000 -> 98329.20966 | F30: =(LARGE('Hourly load shapes by class'!G8788:G8799,1)+LARGE('Hourly load shapes by class'!G8788:G8799,2)+LARGE('Hourly load shapes by class'!G8788:G8799,3)+LARGE('Hourly load shapes by class'!G8788:G8799,4))*1000000 -> 5213.623472 | G30: =(LARGE('Hourly load shapes by class'!H8788:H8799,1)+LARGE('Hourly load shapes by class'!H8788:H8799,2)+LARGE('Hourly load shapes by class'!H8788:H8799,3)+LARGE('Hourly load shapes by class'!H8788:H8799,4))*1000000 -> 7.103304655 | H30: =(LARGE('Hourly load shapes by class'!I8788:I8799,1)+LARGE('Hourly load shapes by class'!I8788:I8799,2)+LARGE('Hourly load shapes by class'!I8788:I8799,3)+LARGE('Hourly load shapes by class'!I8788:I8799,4))*1000000 -> 268.4472625 | I30: =(LARGE('Hourly load shapes by class'!J8788:J8799,1)+LARGE('Hourly load shapes by class'!J8788:J8799,2)+LARGE('Hourly load shapes by class'!J8788:J8799,3)+LARGE('Hourly load shapes by class'!J8788:J8799,4))*1000000 -> 63133.66063 | K30: =(LARGE('Hourly load shapes by class'!M8788:M8799,1)+LARGE('Hourly load shapes by class'!M8788:M8799,2)+LARGE('Hourly load shapes by class'!M8788:M8799,3)+LARGE('Hourly load shapes by class'!M8788:M8799,4))*1000000 -> 169900.5559 | L30: =(LARGE('Hourly load shapes by class'!N8788:N8799,1)+LARGE('Hourly load shapes by class'!N8788:N8799,2)+LARGE('Hourly load shapes by class'!N8788:N8799,3)+LARGE('Hourly load shapes by class'!N8788:N8799,4))*1000000 -> 108624.7201 | M30: =(LARGE('Hourly load shapes by class'!O8788:O8799,1)+LARGE('Hourly load shapes by class'!O8788:O8799,2)+LARGE('Hourly load shapes by class'!O8788:O8799,3)+LARGE('Hourly load shapes by class'!O8788:O8799,4))*1000000 -> 2081.976899 | N30: =(LARGE('Hourly load shapes by class'!P8788:P8799,1)+LARGE('Hourly load shapes by class'!P8788:P8799,2)+LARGE('Hourly load shapes by class'!P8788:P8799,3)+LARGE('Hourly load shapes by class'!P8788:P8799,4))*1000000 -> 13.18079741 | O30: =(LARGE('Hourly load shapes by class'!Q8788:Q8799,1)+LARGE('Hourly load shapes by class'!Q8788:Q8799,2)+LARGE('Hourly load shapes by class'!Q8788:Q8799,3)+LARGE('Hourly load shapes by class'!Q8788:Q8799,4))*1000000 -> 131.6108068 | P30: =(LARGE('Hourly load shapes by class'!R8788:R8799,1)+LARGE('Hourly load shapes by class'!R8788:R8799,2)+LARGE('Hourly load shapes by class'!R8788:R8799,3)+LARGE('Hourly load shapes by class'!R8788:R8799,4))*1000000 -> 63133.66063
A32: 12 NCP
A33: Classification NCP from Load Data Provider | B33: DNCP12 | C33: =SUM(D33:I33) -> 993309.0826 | D33: =SUM('Hourly load shapes by class'!E8788:E8799)*1000000 -> 529017.034 | E33: =SUM('Hourly load shapes by class'!F8788:F8799)*1000000 -> 276653.0309 | F33: =SUM('Hourly load shapes by class'!G8788:G8799)*1000000 -> 14692.13854 | G33: =SUM('Hourly load shapes by class'!H8788:H8799)*1000000 -> 20.05776325 | H33: =SUM('Hourly load shapes by class'!I8788:I8799)*1000000 -> 729.1382967 | I33: =SUM('Hourly load shapes by class'!J8788:J8799)*1000000 -> 172197.6832 | K33: =SUM('Hourly load shapes by class'!M8788:M8799)*1000000 -> 402204.3644 | L33: =SUM('Hourly load shapes by class'!N8788:N8799)*1000000 -> 305619.8473 | M33: =SUM('Hourly load shapes by class'!O8788:O8799)*1000000 -> 5867.069842 | N33: =SUM('Hourly load shapes by class'!P8788:P8799)*1000000 -> 37.21891807 | O33: =SUM('Hourly load shapes by class'!Q8788:Q8799)*1000000 -> 357.4723713 | P33: =SUM('Hourly load shapes by class'!R8788:R8799)*1000000 -> 172197.6832
